Workbook

Sheet Start
B3: Willkommen zum Mehrheitsrechner für Abstimmungen im Rat
B5: Wählen Sie bitte aus, nach welchem Verfahren abgestimmt werden soll (durch Mausklick auf das jeweilige Feld)
B7: Normales Abstimmungsverfahren ab 01.11.2014 | C7: Abstimmung ohne Vorschlag der Kommission
B9: - Regelfall, wenn kein anderes Verfahren greift. | C9: - Ausnahmefall nach Art. 238 Abs. 2 AEUV.
B10: - Erfordert Mehrheit der MS und Mehrheit der Bevölkerung | C10: - Erforderliche Mehrheit der MS erhöht.
C12: ## Art. 238 Abs. 2 AEUV bestimmt: "Beschließt der Rat nicht auf Vorschlag der Kommission oder des Hohen Vertreters der Union für Außen- und Sicherheitspolitik […]"
A13: Alle Angaben sind überprüft und getestet. Für die Richtigkeit der Angaben sowie eine ordnungsgemäße Funktion der Datei kann jedoch keine Haftung übernommen werden.

Sheet Mehrheitsrechner_ab_11_2014
C2: Qualifizierte Mehrheit (Art. 16 Abs. 4 EUV) ab 1.11.20141
A4: Mitgliedstaat | B4: MS darf an Abstimmung teilnehmen? (X, wenn der MS teilnimmt)5 | C4: Stimmverhalten (J für Ja, N für Nein, E für Enthaltung) | D4: Bevölkerung3 | E4: "Zustimmende" Bevölkerung | F4: "Ablehnende" bzw. "enhaltende" Bevölkerung
A5: Deutschland | B5: x | C5: j | D5: =IF(B5="x",82719022,0) -> 82719022 | E5: =IF(AND(C5="j",B5="x"),1*D5,0) -> 82719022 | F5: =IF(AND(C5<>"j",B5="x"),1*D5,0) -> 0
A6: Frankreich | B6: x | C6: j | D6: =IF(B6="x",67221943,0) -> 67221943 | E6: =IF(AND(C6="j",B6="x"),1*D6,0) -> 67221943 | F6: =IF(AND(C6<>"j",B6="x"),1*D6,0) -> 0
A7: Vereinigtes Königreich | B7: x | C7: j | D7: =IF(B7="x",66238007,0) -> 66238007 | E7: 66238007 | F7: 0
A8: Italien | B8: x | C8: j | D8: =IF(B8="x",61166142,0) -> 61166142 | E8: 61166142 | F8: 0
A9: Spanien | B9: x | C9: j | D9: =IF(B9="x",46659302,0) -> 46659302 | E9: 46659302 | F9: 0
A10: Polen | B10: x | C10: j | D10: =IF(B10="x",37976687,0) -> 37976687 | E10: 37976687 | F10: 0
A11: Rumänien | B11: x | C11: j | D11: =IF(B11="x",19523621,0) -> 19523621 | E11: 19523621 | F11: 0
A12: Niederlande | B12: x | C12: j | D12: =IF(B12="x",17321110,0) -> 17321110 | E12: 17321110 | F12: 0
A13: Belgien | B13: x | C13: j | D13: =IF(B13="x",11413058,0) -> 11413058 | E13: 11413058 | F13: 0
A14: Griechenland | B14: x | C14: j | D14: =IF(B14="x",10738928,0) -> 10738928 | E14: 10738928 | F14: 0
A15: Tschechische Republik | B15: x | C15: j | D15: =IF(B15="x",10493154,0) -> 10493154 | E15: 10493154 | F15: 0
A16: Portugal | B16: x | C16: j | D16: =IF(B16="x",10291027,0) -> 10291027 | E16: 10291027 | F16: 0
A17: Ungarn | B17: x | C17: j | D17: =IF(B17="x",9778371,0) -> 9778371 | E17: 9778371 | F17: 0
A18: Schweden | B18: x | C18: j | D18: =IF(B18="x",10157000,0) -> 10157000 | E18: 10157000 | F18: 0
A19: Österreich | B19: x | C19: j | D19: =IF(B19="x",8802000,0) -> 8802000 | E19: 8802000 | F19: 0
A20: Bulgarien | B20: x | C20: j | D20: =IF(B20="x",7050034,0) -> 7050034 | E20: 7050034 | F20: 0
A21: Dänemark | B21: x | C21: j | D21: =IF(B21="x",5774877,0) -> 5774877 | E21: 5774877 | F21: 0
A22: Finnland | B22: x | C22: j | D22: =IF(B22="x",5501930,0) -> 5501930 | E22: 5501930 | F22: 0
A23: Slowakei | B23: x | C23: j | D23: =IF(B23="x",5443120,0) -> 5443120 | E23: 5443120 | F23: 0
A24: Irland | B24: x | C24: j | D24: =IF(B24="x",4830392,0) -> 4830392 | E24: 4830392 | F24: 0
A25: Kroatien | B25: x | C25: j | D25: =IF(B25="x",4105493,0) -> 4105493 | E25: 4105493 | F25: 0
A26: Litauen | B26: x | C26: j | D26: =IF(B26="x",2808901,0) -> 2808901 | E26: 2808901 | F26: 0
A27: Slowenien | B27: x | C27: j | D27: =IF(B27="x",2066880,0) -> 2066880 | E27: 2066880 | F27: 0
A28: Lettland | B28: x | C28: j | D28: =IF(B28="x",1934379,0) -> 1934379 | E28: 1934379 | F28: 0
A29: Estland | B29: x | C29: j | D29: =IF(B29="x",1319133,0) -> 1319133 | E29: 1319133 | F29: 0
A30: Zypern | B30: x | C30: j | D30: =IF(B30="x",864236,0) -> 864236 | E30: 864236 | F30: 0
A31: Luxemburg | B31: x | C31: j | D31: =IF(B31="x",600124,0) -> 600124 | E31: 600124 | F31: 0
A32: Malta | B32: x | C32: j | D32: =IF(B32="x",475701,0) -> 475701 | E32: =IF(C32="j",1*D32,0) -> 475701 | F32: =IF(C32<>"j",1*D32,0) -> 0
A33: Summe MS / Summe J | B33: =COUNTIF(B5:B32,"X") -> 28 | C33: ='Technische Tabelle'!I34 -> 28 | D33: =SUM(D5:D32) -> 513274572 | E33: =SUM(E5:E32) -> 513274572 | F33: =SUM(F5:F32) -> 0
A35: 1. Mehrheit der Mitgliedstaaten? | C35: =IF(C36>=C37,"Ja","Nein") -> Ja
A36: Zustimmende Mitgliedstaaten | C36: =C33 -> 28
A37: Benötigte Anzahl von Mitgliedstaaten2 | C37: =ROUNDUP(B33*0.55,0) -> 16
A39: 2a. Bevölkerungskriterium?3 | D39: =IF(D40>=D41,"Ja","Nein") -> Ja
A40: Zustimmende Bevölkerung | D40: =E33 -> 513274572
A41: Benötigte Bevölkerungszahl (65%) | D41: =0.65*D33 -> 333628471.8
A43: 2b. Sperrminorität?4 | E43: =IF(B33=28, IF(C35="Nein","Ja",IF(E44>=4,IF(E47>E48,"Ja","Nein"), "Nein")), 'Technische Tabelle'!L36) -> Nein
A44: Nicht zustimmende Mitgliedstaaten | E44: =(SUM('Technische Tabelle'!J34,'Technische Tabelle'!K34)) -> 0
A45: Minimum für Sperrminorität | E45: =IF(B33=28, 4, "MS, die 35% der Bevölkerung repräsentieren, plus 1 MS") -> 4
A47: Nicht zustimmende Bevölkerung | E47: =F33 -> 0
A48: Benötigte Bevölkerungszahl (> 35%) | E48: =0.35*D33 -> 179646100.2
A50: 3. Verzögerung durch den Ioannina-Mechanismus?
E51: Infolge der Ablehnung durch 24,75% der Mitgliedstaaten? | F51: =IF((F52>=F53),"Ja","Nein") -> Nein
D52: Ablehnung | F52: ='Technische Tabelle'!J34 -> 0
D53: Benötigt für Ioannina | F53: =ROUNDUP(0.2475*B33,0) -> 7
E55: Infolge der Ablehnung durch 19,25% der Bevölkerung? | F55: =IF((F56>=F57),"Ja","Nein") -> Nein
D56: Ablehnung | F56: ='Technische Tabelle'!M34 -> 0
D57: Benötigt für Ioannina | F57: =0.1925*D33 -> 98805355.11
A59: 4. Ergebnis: | C59: Qualifizierte Mehrheit erreicht? | G59: =IF(C35="Nein","Nein",IF(AND(D39="Nein",E43="Ja"),"Nein","Ja")) -> Ja
C60: Verzögerung durch den Ioannina-Mechanismus? | G60: =IF(OR(F51="Ja", F55 = "Ja"),"Ja","Nein") -> Nein
A62: Möchten Sie die Abstimmung nach einem anderen Abstimmungsverfahren durchführen? (Ihre Eintragung des Stimmverhaltens bleibt erhalten)
A65: 1 Alle Angaben sind überprüft und getestet. Für die Richtigkeit der Angaben sowie das ordnungsgemäße Funktionieren der Datei kann jedoch keine Haftung übernommen werden.
A66: 2 Nach Art. 16 Abs. 4 UAbs. 1 EUV ist für die qualifizierte Mehrheit die Zustimmung 55% der Mitglieder des Rates erforderlich, jedoch nicht weniger als 15 Ratsmitglieder.
A67: 3 Die Zahlen ergeben sich aus Art. 1 des Anhangs III der Geschäftsordnung des Rates in der jeweils aktuellen Fassung.

Sheet Mehrheitsrechner_Art_3_II_Prot (hidden)
C2: Qualifizierte Mehrheit nach Art. 3 Abs. 2 ÜbBestProt1
A4: Mitgliedstaat | B4: MS darf an Abstimmung teilnehmen? (X, wenn der MS teilnimmt)5 | C4: Stimmverhalten (J für Ja, N für Nein, E für Enthaltung) | D4: Stimmenzahl | E4: Zustimmende Stimmen | F4: Bevölkerung3 | G4: "Zustimmende" Bevölkerung
A5: Deutschland | B5: x | C5: j | D5: =IF(B5="x",29,0) -> 29 | E5: =IF(C5="j",1*D5,0) -> 29 | F5: =IF(B5="x",81089331,0) -> 81089331 | G5: =IF(C5="j",F5,0) -> 81089331
A6: Frankreich | B6: x | C6: j | D6: =IF(B6="x",29,0) -> 29 | E6: =IF(C6="j",1*D6,0) -> 29 | F6: =IF(B6="x",66352469,0) -> 66352469 | G6: =IF(C6="j",F6,0) -> 66352469
A7: Vereinigtes Königreich | B7: x | C7: j | D7: 29 | E7: 29 | F7: =IF(B7="x",64767115,0) -> 64767115 | G7: 64767115
A8: Italien | B8: x | C8: j | D8: 29 | E8: 29 | F8: =IF(B8="x",61438480,0) -> 61438480 | G8: 61438480
A9: Spanien | B9: x | C9: j | D9: =IF(B9="x",27,0) -> 27 | E9: 27 | F9: =IF(B9="x",46439864,0) -> 46439864 | G9: 46439864
A10: Polen | B10: x | C10: j | D10: =IF(B10="x",27,0) -> 27 | E10: 27 | F10: =IF(B10="x",38005614,0) -> 38005614 | G10: 38005614
A11: Rumänien | B11: x | C11: j | D11: =IF(B11="x",14,0) -> 14 | E11: 14 | F11: =IF(B11="x",19861408,0) -> 19861408 | G11: 19861408
A12: Niederlande | B12: x | C12: j | D12: =IF(B12="x",13,0) -> 13 | E12: 13 | F12: =IF(B12="x",17155169,0) -> 17155169 | G12: 17155169
A13: Belgien | B13: x | C13: j | D13: =IF(B13="x",12,0) -> 12 | E13: 12 | F13: =IF(B13="x",11258434,0) -> 11258434 | G13: 11258434
A14: Griechenland | B14: x | C14: j | D14: =IF(B14="x",12,0) -> 12 | E14: =IF(C14="j",1*D14,0) -> 12 | F14: =IF(B14="x",10846979,0) -> 10846979 | G14: =IF(C14="j",F14,0) -> 10846979
A15: Tschechische Republik | B15: x | C15: j | D15: =IF(B15="x",12,0) -> 12 | E15: =IF(C15="j",1*D15,0) -> 12 | F15: =IF(B15="x",10419743,0) -> 10419743 | G15: =IF(C15="j",F15,0) -> 10419743
A16: Portugal | B16: x | C16: j | D16: =IF(B16="x",12,0) -> 12 | E16: 12 | F16: =IF(B16="x",10374822,0) -> 10374822 | G16: 10374822
A17: Ungarn | B17: x | C17: j | D17: =IF(B17="x",12,0) -> 12 | E17: 12 | F17: =IF(B17="x",9855571,0) -> 9855571 | G17: 9855571
A18: Schweden | B18: x | C18: j | D18: =IF(B18="x",10,0) -> 10 | E18: 10 | F18: =IF(B18="x",9790000,0) -> 9790000 | G18: 9790000
A19: Österreich | B19: x | C19: j | D19: =IF(B19="x",10,0) -> 10 | E19: 10 | F19: =IF(B19="x",8581500,0) -> 8581500 | G19: 8581500
A20: Bulgarien | B20: x | C20: j | D20: =IF(B20="x",10,0) -> 10 | E20: 10 | F20: =IF(B20="x",7202198,0) -> 7202198 | G20: 7202198
A21: Dänemark | B21: x | C21: j | D21: =IF(B21="x",7,0) -> 7 | E21: =IF(C21="j",1*D21,0) -> 7 | F21: =IF(B21="x",5653357,0) -> 5653357 | G21: =IF(C21="j",F21,0) -> 5653357
A22: Finnland | B22: x | C22: j | D22: 7 | E22: =IF(C22="j",1*D22,0) -> 7 | F22: =IF(B22="x",5471753,0) -> 5471753 | G22: =IF(C22="j",F22,0) -> 5471753
A23: Slowakei | B23: x | C23: j | D23: 7 | E23: 7 | F23: =IF(B23="x",5403134,0) -> 5403134 | G23: 5403134
A24: Irland | B24: x | C24: j | D24: 7 | E24: 7 | F24: =IF(B24="x",4625885,0) -> 4625885 | G24: 4625885
A25: Kroatien | B25: x | C25: j | D25: 7 | E25: 7 | F25: =IF(B25="x",4225316,0) -> 4225316 | G25: 4225316
A26: Litauen | B26: x | C26: j | D26: 7 | E26: 7 | F26: =IF(B26="x",2921262,0) -> 2921262 | G26: 2921262
A27: Slowenien | B27: x | C27: j | D27: =IF(B27="x",4,0) -> 4 | E27: 4 | F27: =IF(B27="x",2062874,0) -> 2062874 | G27: 2062874
A28: Lettland | B28: x | C28: j | D28: =IF(B28="x",4,0) -> 4 | E28: 4 | F28: =IF(B28="x",1986096,0) -> 1986096 | G28: 1986096
A29: Estland | B29: x | C29: j | D29: =IF(B29="x",4,0) -> 4 | E29: 4 | F29: =IF(B29="x",1313271,0) -> 1313271 | G29: 1313271
A30: Zypern | B30: x | C30: j | D30: =IF(B30="x",4,0) -> 4 | E30: 4 | F30: =IF(B30="x",847008,0) -> 847008 | G30: 847008
A31: Luxemburg | B31: x | C31: j | D31: =IF(B31="x",4,0) -> 4 | E31: 4 | F31: =IF(B31="x",562958,0) -> 562958 | G31: 562958
A32: Malta | B32: x | C32: j | D32: =IF(B32="x",3,0) -> 3 | E32: 3 | F32: =IF(B32="x",429344,0) -> 429344 | G32: 429344
A33: Summe teilnehmend / J | B33: =COUNTIF(B5:B32,"X") -> 28 | C33: ='Technische Tabelle'!N34 -> 28 | D33: =SUM(D5:D32) -> 352 | E33: =SUM(E5:E32) -> 352 | F33: =SUM(F5:F32) -> 508940955 | G33: =SUM(G5:G32) -> 508940955
I34: Sonderfall: Art. 3 Abs. 2 Satz 2, Abs. 3 UA. 3 S. 2 ÜbBestProt: 2/3 Mehrheit (Äquivalent zu Art. 238 Abs. 2, ohne Vorschlag der Kommission)
A35: 1. Mehrheit der Mitgliedstaaten? | C35: =IF(C36>=C37,"Ja","Nein") -> Ja | I35: =IF(I36>=I37,"Ja","Nein") -> Ja
A36: Zustimmende Mitgliedstaaten | C36: ='Technische Tabelle'!N34 -> 28 | I36: =COUNTIF(C5:C32,"j") -> 28
A37: Benötigte Anzahl von Mitgliedstaaten | C37: =ROUNDUP(B33*0.55,0) -> 16 | H37: (2/3) | I37: =ROUNDUP(B33*(2/3),0) -> 19
A39: 2. Ausreichende Stimmzahl? | D39: =IF(D40>=D41,"Ja","Nein") -> Ja | I39: =IF(I40>=I41,"Ja","Nein") -> Ja
A40: Ja-Stimmen | D40: =E33 -> 352 | I40: =SUM(E5:E32) -> 352
A41: Benötigte Stimmen für qualifizierte Mehrheit2 | D41: =IF(B33=28, 260, ROUND(D33*260/352,0)) -> 260 | I41: =IF(B33=28, 260, ROUND(D33*260/352,0)) -> 260
A43: 3. Bevölkerungskriterium?3 | E43: =IF(E44>E45,"Ja","Nein") -> Ja | I43: =IF(I44>I45,"Ja","Nein") -> Ja
A44: Zustimmende Bevölkerung | E44: =G33 -> 508940955 | I44: =G33 -> 508940955
A45: Benötigte Bevölkerungszahl (62 %) | E45: =F33*0.62 -> 315543392.1 | I45: =F33*0.62 -> 315543392.1
A47: 4. Verzögerung durch den Ioannina-Mechanismus?4
E48: Infolge der Ablehnung durch 37,5% der Mitgliedstaaten? | F48: =IF((F49>=F50),"Ja","Nein") -> Nein | I48: =IF(('Technische Tabelle'!O34)>=(0.3375*28),"Ja","Nein") -> Nein
D49: Ablehnung | F49: ='Technische Tabelle'!O34 -> 0 | I49: ='Technische Tabelle'!O34 -> 0
D50: Benötigt für Ioannina | F50: =ROUNDUP(0.375*B33,0) -> 11 | I50: =ROUNDUP(0.25*B33,0) -> 7
E51: Infolge der Ablehnung durch 28,5% der Bevölkerung? | F51: =IF((F52>=F53),"Ja","Nein") -> Nein | I51: =IF('Technische Tabelle'!R34>=0.285*F33,"Ja","Nein") -> Nein
D52: Ablehnung | F52: ='Technische Tabelle'!R34 -> 0 | I52: ='Technische Tabelle'!R34 -> 0
D53: Benötigt für Ioannina | F53: =0.285*F33 -> 145048172.2 | I53: =0.285*F33 -> 145048172.2
A55: 5. Ergebnis: | C55: Qualifizierte Mehrheit erreicht? | G55: =IF(D40<D41,"Nein",IF(C36<C37,"Nein",IF(E44<E45,"Nein","Ja"))) -> Ja | I55: =IF(I35="Nein","Nein",IF(I39="Nein","Nein",IF(I43="Nein","Nein","Ja"))) -> Ja
C56: Verzögerung durch den Ioannina-Mechanismus? | G56: =IF(OR(F48="Ja", F51 = "Ja"),"Ja","Nein") -> Nein | I56: =IF(OR(I48="Ja", I51 = "Ja"),"Ja","Nein") -> Nein
A57: Möchten Sie die Abstimmung nach einem anderen Abstimmungsverfahren durchführen? (Ihre Eintragung des Stimmverhaltens bleibt erhalten)
A60: 1 Alle Angaben sind überprüft und getestet. Für die Richtigkeit der Angaben sowie eine ordnungsgemäße Funktion der Datei kann jedoch keine Haftung übernommen werden.
A61: Gemäß Art. 16 Abs. 5 EUV i.V.m. Art. 3 des Protokolls über die Übergangsbestimmungen zum Vertrag von Lissabon beschließt der Rat auf Antrag eines Mitgliedstaates mit qualifizierter Mehrheit gemäß Art. 3 Abs. 3 ÜbBestProt (entsprechend dem ehemaligen Art. 205 Abs. 2 EGV).
A62: 2 Die Stimmenzahlen und Mehrheitserfordernisse ergeben sich aus Art. 3 Abs. 3 ÜbBestProt in der Fassung, die er durch Art. 20 des Vertrages über den Beitritt Kroatiens, ABl. L112 v. 24.04.2012, S. 6, erhalten hat. Soweit nicht alle Mitgliedstaaten teilnehmen, wird die benötigte Mehrheit proportional zur Anzahl der abstimmenden Stimmen reduziert.
A63: 3 Das Bevölkerungskriterium wird gemäß Art. 3 Absatz 3 UAbs. 4 des Protokolls über die Übergangsbestimmungen nur auf Antrag überprüft. Die Zahlen ergeben sich aus Art. 1 des Anhangs III der Geschäftsordnung des Rates in der jeweils aktuellen Fassung.
A64: 4 Der Beschluss des Rates zum Ioannina-Mechanismus nimmt nicht ausdrücklich auf die Abstimmung nach dem alten Verfahren Bezug; daher kann noch nicht abschließend geklärt werden, ob der Mechanismus hier in der Praxis angewendet werden wird. Sollte dies im Einzelfall entscheidungserheblich sein, halten Sie bitte mit Referat EA4 Rücksprache zum Vorgehen.
A65: 5 Gemeint sind Situationen nach Art. 238 Abs. 3 AEUV, in denen die Verträge die Mitwirkung von einigen Mitgliedstaaten ausschließen; das gilt insbesondere für Abstimmungen der Eurogruppe nach Art. 136 Abs. 1, 140 bs. 2 AEUV.

Sheet Mehrheitsrechner_Art_238_II
B6: Qualifizierte Mehrheit nach Art. 238 Abs. 2 AEUV ab 1.11.20141
A8: Mitgliedstaat | B8: MS darf an Abstimmung teilnehmen? (X, wenn der MS teilnimmt)6 | C8: Stimmverhalten (J für Ja, N für Nein, E für Enthaltung) | D8: Bevölkerung3 | E8: "Zustimmende" Bevölkerung | F8: "Ablehnende" bzw. "enhaltende" Bevölkerung
A9: Deutschland | B9: x | C9: j | D9: =IF(B9="x",82719022,0) -> 82719022 | E9: =IF(C9="j",1*D9,0) -> 82719022 | F9: =IF(AND(C9<>"j",B9="x"),1*D9,0) -> 0
A10: Frankreich | B10: x | C10: j | D10: =IF(B10="x",67221943,0) -> 67221943 | E10: =IF(C10="j",1*D10,0) -> 67221943 | F10: =IF(AND(C10<>"j",B10="x"),1*D10,0) -> 0
A11: Vereinigtes Königreich | B11: x | C11: j | D11: =IF(B11="x",66238007,0) -> 66238007 | E11: 66238007 | F11: 0
A12: Italien | B12: x | C12: j | D12: =IF(B12="x",61166142,0) -> 61166142 | E12: 61166142 | F12: 0
A13: Spanien | B13: x | C13: j | D13: =IF(B13="x",46659302,0) -> 46659302 | E13: 46659302 | F13: 0
A14: Polen | B14: x | C14: j | D14: =IF(B14="x",37976687,0) -> 37976687 | E14: 37976687 | F14: 0
A15: Rumänien | B15: x | C15: j | D15: =IF(B15="x",19523621,0) -> 19523621 | E15: 19523621 | F15: 0
A16: Niederlande | B16: x | C16: j | D16: =IF(B16="x",17321110,0) -> 17321110 | E16: 17321110 | F16: 0
A17: Belgien | B17: x | C17: j | D17: =IF(B17="x",11413058,0) -> 11413058 | E17: 11413058 | F17: 0
A18: Griechenland | B18: x | C18: j | D18: =IF(B18="x",10738928,0) -> 10738928 | E18: 10738928 | F18: 0
A19: Tschechische Republik | B19: x | C19: j | D19: =IF(B19="x",10493154,0) -> 10493154 | E19: 10493154 | F19: 0
A20: Portugal | B20: x | C20: j | D20: =IF(B20="x",10291027,0) -> 10291027 | E20: 10291027 | F20: 0
A21: Ungarn | B21: x | C21: j | D21: =IF(B21="x",9778371,0) -> 9778371 | E21: 9778371 | F21: 0
A22: Schweden | B22: x | C22: j | D22: =IF(B22="x",10157000,0) -> 10157000 | E22: 10157000 | F22: 0
A23: Österreich | B23: x | C23: j | D23: =IF(B23="x",8802000,0) -> 8802000 | E23: 8802000 | F23: 0
A24: Bulgarien | B24: x | C24: j | D24: =IF(B24="x",7050034,0) -> 7050034 | E24: 7050034 | F24: 0
A25: Dänemark | B25: x | C25: j | D25: =IF(B25="x",5774877,0) -> 5774877 | E25: 5774877 | F25: 0
A26: Finnland | B26: x | C26: j | D26: =IF(B26="x",5501930,0) -> 5501930 | E26: 5501930 | F26: 0
A27: Slowakei | B27: x | C27: j | D27: =IF(B27="x",5443120,0) -> 5443120 | E27: 5443120 | F27: 0
A28: Irland | B28: x | C28: j | D28: =IF(B28="x",4830392,0) -> 4830392 | E28: 4830392 | F28: 0
A29: Kroatien | B29: x | C29: j | D29: =IF(B29="x",4105493,0) -> 4105493 | E29: 4105493 | F29: 0
A30: Litauen | B30: x | C30: j | D30: =IF(B30="x",2808901,0) -> 2808901 | E30: 2808901 | F30: 0
A31: Slowenien | B31: x | C31: j | D31: =IF(B31="x",2066880,0) -> 2066880 | E31: 2066880 | F31: 0
A32: Lettland | B32: x | C32: j | D32: =IF(B32="x",1934379,0) -> 1934379 | E32: 1934379 | F32: 0
A33: Estland | B33: x | C33: j | D33: =IF(B33="x",1319133,0) -> 1319133 | E33: 1319133 | F33: 0
A34: Zypern | B34: x | C34: j | D34: =IF(B34="x",864236,0) -> 864236 | E34: 864236 | F34: 0
A35: Luxemburg | B35: x | C35: j | D35: =IF(B35="x",600124,0) -> 600124 | E35: 600124 | F35: 0
A36: Malta | B36: x | C36: j | D36: =IF(B36="x",475701,0) -> 475701 | E36: 475701 | F36: =IF(C36<>"j",1*D36,0) -> 0
A37: Summe Teilnehmende MS / J | B37: =COUNTIF(B9:B36,"X") -> 28 | C37: ='Technische Tabelle'!S34 -> 28 | D37: =SUM(D9:D36) -> 513274572 | E37: =SUM(E9:E36) -> 513274572 | F37: =SUM(F9:F36) -> 0
A39: 1. Mehrheit der Mitgliedstaaten? | B39: =IF(B40>=B41,"Ja","Nein") -> Ja
A40: Zustimmende Mitgliedstaaten | B40: =C37 -> 28
A41: Benötigte Anzahl von Mitgliedstaaten (72 %)2 | B41: =IF(B37=28, 21, ROUNDUP(B37*0.72,0)) -> 21
A43: 2a. Bevölkerungskriterium?3 | C43: =IF(C44>=C45,"Ja","Nein") -> Ja
A44: Zustimmende Bevölkerung | C44: =E37 -> 513274572
A45: Benötigte Bevölkerungszahl (65%) | C45: =0.65*D37 -> 333628471.8
A47: 2b. Sperrminorität?4 | E47: =IF(B37=28, IF(B39="Nein","Ja",IF(E48>=4,IF(E51>E52,"Ja","Nein"), "Nein")), "Sperrminorität unanwendbar") -> Nein
A48: Nicht zustimmende Mitgliedstaaten | E48: ='Technische Tabelle'!T34+'Technische Tabelle'!U34 -> 0
A49: Minimum für Sperrminorität | E49: 4
A51: Nicht zustimmende Bevölkerung | E51: =SUM(F9:F36) -> 0
A52: Benötigte Bevölkerungszahl (> 35%) | E52: =0.35*D37 -> 179646100.2
A55: 3. Verzögerung durch den Ioannina-Mechanismus?
E56: Infolge der Ablehnung durch 15,4% der Mitgliedstaaten? | F56: =IF((F57>=F58),"Ja","Nein") -> Nein
C57: Ablehnung | F57: ='Technische Tabelle'!T34 -> 0
C58: Benötigt für Ioannina | F58: =ROUNDUP(0.154*B37,0) -> 5
E59: Infolge der Ablehnung durch 19,25% der Bevölkerung? | F59: =IF((F60>=F61),"Ja","Nein") -> Nein
C60: Ablehnung | F60: ='Technische Tabelle'!W34 -> 0
C61: Benötigt für Ioannina | F61: =ROUNDUP(0.1925*D37,0) -> 98805356
A64: 4. Ergebnis: | B64: Qualifizierte Mehrheit erreicht? | H64: =IF(B37=28, IF(B39="Nein","Nein",IF(AND(C43="Nein",E47="Ja"),"Nein","Ja")), IF(B39="Nein","Nein",IF(C43="Nein","Nein","Ja"))) -> Ja
B65: Verzögerung durch den Ioannina-Mechanismus? | H65: =IF(OR(F56="JA", F59 = "JA"),"Ja","Nein") -> Nein
A66: Möchten Sie die Abstimmung nach einem anderen Abstimmungsverfahren durchführen? (Ihre Eintragung des Stimmverhaltens bleibt erhalten)
A69: 1 Alle Angaben sind überprüft und getestet. Für die Richtigkeit der Angaben sowie das ordnungsgemäße Funktionieren der Datei kann jedoch keine Haftung übernommen werden.
A70: 2 Nach Art. 238 Abs. 2 AEUV ist für eine qualifizierte Mehrheit die Zustimmung von 72% der Mitglieder des Rates erforderlich.
A71: 3 Die Zahlen ergeben sich aus Art. 1 des Anhangs III der Geschäftsordnung des Rates in der jeweils aktuellen Fassung.
A72: 4 Wird das Bevölkerungskriterium verfehlt, weil weniger als vier Mitgliedstaaten widersprechen, die dennoch über 28 % der Bevölkerung auf sich vereinen, ist die nötige Sperrminorität von vier Mitgliedstaaten nicht erreicht und das Bevölkerungskriterium für die Annahme des Rechtsaktes gilt trotzdem als erfüllt. Allerdings ist der Verweis zwischen Art. 238 Abs. 2 AEUV und Art. 16 Abs. 4 EUV unklar formuliert, so dass erst in der Praxis geklärt werden muss, ob die besondere Regelung zur Sperrminorität nach Art. 16 Abs. 4 UAbs. 2 EUV bei diesem Abstimmungsverfahren tatsächlich zur Anwendung kommt. Sollte deren Anwendung im Einzelfall entscheidungserheblich sein, halten Sie bitte mit dem Referat EA4 Rücksprache zum weiteren Vorgehen. Bei Abstimmungen, an denen nicht alle Mitgliedstaaten teilnehmen, gilt nach Art. 238 Abs. 3 lit. b AEUV keine Sonderregelung zur Sperrminorität.
A73: 5 Bitte beachten Sie, dass Abstimmungen der Euro-Gruppe nach Art. 163 Abs. 2 Uabs. 2 AEUV und Art. 140 Abs. 2 Uabs. 3 AEUV die Mitglieder der Eurogruppe nach den Mehrheiten des Art. 238 Abs. 3 lit. a AEUV entscheiden; diese werden im Mehrheitsrechner "Normal" abgebildet. Die Auswahl der Eurogruppe entfällt daher in dieser Option.
A74: 6 Die Verträge schließen u.U. die Beteiligung von einigen Mitgliedstaaten aus, dann richtet sich die Abstimmung nach Art. 238 Abs. 3 AEUV.

Sheet Technische Tabelle (hidden)
B1: Berechnung Ioannina-Mehrheit | I1: Berechnung der Stimmen nach Beteiligung | N1: Berechnung der Stimmen nach Beteiligung | S1: Berechnung der Stimmen nach Beteiligung
B2: Abstimmung ab 01.11.2014 | D2: Abstimmung nach Art. 238 II | F2: Abstimmung nach Art. 3 II ÜbBEstProt | I2: Abstimmung ab 01.11. | N2: Abstimmung nach Art 3 II ÜberBestProt | S2: Abstimmung nach Art 238 II
B3: Stimmenzahl NEIN-Stimmen für Ioannina | C3: Bevölkerungszahl NEIN-Stimmen für Ioannina | D3: Stimmenzahl NEIN-Stimmen für Ioannina | E3: Bevölkerungszahl NEIN-Stimmen für Ioannina | F3: Stimmenzahl NEIN-Stimmen für Ioannina | G3: Bevölkerungszahl NEIN-Stimmen für Ioannina | I3: Stimmenzahl JA abhängig von Beteiligung | J3: Stimmenzahl NEIN abhängig von Beteiligung | K3: Enthaltungen nach Beteiligung | L3: Sperrminorität bei weniger als 28 MS | M3: Bevölkerung NEIN für Ioannina | N3: Stimmenzahl JA abhängig von Beteiligung | O3: Stimmenzahl NEIN abhängig von Beteiligung | P3: Enthaltungen nach Beteiligung | Q3: Sperrminorität bei weniger als 28 MS | R3: Bevölkerung NEIN für Ioannina | S3: Stimmenzahl JA abhängig von Beteiligung | T3: Stimmenzahl NEIN abhängig von Beteiligung | U3: Enthaltungen nach Beteiligung | V3: Sperrminorität bei weniger als 28 MS | W3: Bevölkerung NEIN für Ioannina
A5: Deutschland | B5: =IF(Mehrheitsrechner_ab_11_2014!C5="n",1,0) -> 0 | C5: =IF(Mehrheitsrechner_ab_11_2014!C5="n",1*Mehrheitsrechner_ab_11_2014!D5,0) -> 0 | D5: =IF(Mehrheitsrechner_Art_238_II!B9="n",1,0) -> 0 | E5: =IF(Mehrheitsrechner_Art_238_II!B9="n",1*Mehrheitsrechner_Art_238_II!C9,0) -> 0 | F5: =IF(Mehrheitsrechner_Art_3_II_Prot!C5="n",1,0) -> 0 | G5: =IF(Mehrheitsrechner_Art_3_II_Prot!C5="n",1*Mehrheitsrechner_Art_3_II_Prot!F5,0) -> 0 | I5: =IF(AND(Mehrheitsrechner_ab_11_2014!C5="J",Mehrheitsrechner_ab_11_2014!B5="x"),1,0) -> 1 | J5: =IF(AND(Mehrheitsrechner_ab_11_2014!C5="N",Mehrheitsrechner_ab_11_2014!B5="x"),1,0) -> 0 | K5: =IF(AND(Mehrheitsrechner_ab_11_2014!C5="e",Mehrheitsrechner_ab_11_2014!B5="x"),1,0) -> 0 | L5: =IF(Mehrheitsrechner_ab_11_2014!B3328, IF(AND(SUM(L6:L32)<1,'Technische Tabelle'!I5<1),Mehrheitsrechner_ab_11_2014!F5,0),0) -> 0 | M5: =IF(AND(Mehrheitsrechner_ab_11_2014!C5="n",Mehrheitsrechner_ab_11_2014!B5="x"),1*Mehrheitsrechner_ab_11_2014!D5,0) -> 0 | N5: =IF(AND(Mehrheitsrechner_Art_3_II_Prot!B5="x",Mehrheitsrechner_Art_3_II_Prot!C5="J"),1,0) -> 1 | O5: =IF(AND(Mehrheitsrechner_Art_3_II_Prot!B5="x",Mehrheitsrechner_Art_3_II_Prot!C5="N"),1,0) -> 0 | P5: =IF(AND(Mehrheitsrechner_ab_11_2014!H5="e",Mehrheitsrechner_ab_11_2014!G5="x"),1,0) -> 0 | Q5: =IF(Mehrheitsrechner_ab_11_2014!G3328, IF(AND(SUM(Q6:Q32)<1,'Technische Tabelle'!N5<1),Mehrheitsrechner_ab_11_2014!K5,0),0) -> 0 | R5: =IF(AND(Mehrheitsrechner_Art_3_II_Prot!C5="n",Mehrheitsrechner_Art_3_II_Prot!B5="x"),1*Mehrheitsrechner_Art_3_II_Prot!F5,0) -> 0 | S5: =IF(AND(Mehrheitsrechner_Art_238_II!B9="x",Mehrheitsrechner_Art_238_II!C9="J"),1,0) -> 1 | T5: =IF(AND(Mehrheitsrechner_Art_238_II!B9="x",Mehrheitsrechner_Art_238_II!C9="N"),1,0) -> 0 | U5: =IF(AND(Mehrheitsrechner_Art_238_II!C9="e",Mehrheitsrechner_Art_238_II!B9="x"),1,0) -> 0 | V5: =IF(Mehrheitsrechner_ab_11_2014!L3328, IF(AND(SUM(V6:V32)<1,'Technische Tabelle'!S5<1),Mehrheitsrechner_ab_11_2014!P5,0),0) -> 0 | W5: =IF(AND(Mehrheitsrechner_Art_238_II!C9="n",Mehrheitsrechner_Art_238_II!B9="x"),1*Mehrheitsrechner_Art_238_II!D9,0) -> 0
A6: Frankreich | B6: =IF(Mehrheitsrechner_ab_11_2014!C6="n",1,0) -> 0 | C6: =IF(Mehrheitsrechner_ab_11_2014!C6="n",1*Mehrheitsrechner_ab_11_2014!D6,0) -> 0 | D6: =IF(Mehrheitsrechner_Art_238_II!B10="n",1,0) -> 0 | E6: =IF(Mehrheitsrechner_Art_238_II!B10="n",1*Mehrheitsrechner_Art_238_II!C10,0) -> 0 | F6: =IF(Mehrheitsrechner_Art_3_II_Prot!C6="n",1,0) -> 0 | G6: =IF(Mehrheitsrechner_Art_3_II_Prot!C6="n",1*Mehrheitsrechner_Art_3_II_Prot!F6,0) -> 0 | I6: =IF(AND(Mehrheitsrechner_ab_11_2014!C6="J",Mehrheitsrechner_ab_11_2014!B6="x"),1,0) -> 1 | J6: =IF(AND(Mehrheitsrechner_ab_11_2014!C6="N",Mehrheitsrechner_ab_11_2014!B6="x"),1,0) -> 0 | K6: =IF(AND(Mehrheitsrechner_ab_11_2014!C6="e",Mehrheitsrechner_ab_11_2014!B6="x"),1,0) -> 0 | L6: =IF(Mehrheitsrechner_ab_11_2014!B33<28, IF(AND(SUM(L7:L32)<1,'Technische Tabelle'!I6<1),Mehrheitsrechner_ab_11_2014!F6,0),0) -> 0 | M6: =IF(AND(Mehrheitsrechner_ab_11_2014!C6="n",Mehrheitsrechner_ab_11_2014!B6="x"),1*Mehrheitsrechner_ab_11_2014!D6,0) -> 0 | N6: =IF(AND(Mehrheitsrechner_Art_3_II_Prot!B6="x",Mehrheitsrechner_Art_3_II_Prot!C6="J"),1,0) -> 1 | O6: =IF(AND(Mehrheitsrechner_Art_3_II_Prot!B6="x",Mehrheitsrechner_Art_3_II_Prot!C6="N"),1,0) -> 0 | P6: =IF(AND(Mehrheitsrechner_ab_11_2014!H6="e",Mehrheitsrechner_ab_11_2014!G6="x"),1,0) -> 0 | Q6: =IF(Mehrheitsrechner_ab_11_2014!G33<28, IF(AND(SUM(Q7:Q32)<1,'Technische Tabelle'!N6<1),Mehrheitsrechner_ab_11_2014!K6,0),0) -> 0 | R6: =IF(AND(Mehrheitsrechner_Art_3_II_Prot!C6="n",Mehrheitsrechner_Art_3_II_Prot!B6="x"),1*Mehrheitsrechner_Art_3_II_Prot!F6,0) -> 0 | S6: =IF(AND(Mehrheitsrechner_Art_238_II!B10="x",Mehrheitsrechner_Art_238_II!C10="J"),1,0) -> 1 | T6: =IF(AND(Mehrheitsrechner_Art_238_II!B10="x",Mehrheitsrechner_Art_238_II!C10="N"),1,0) -> 0 | U6: =IF(AND(Mehrheitsrechner_Art_238_II!C10="e",Mehrheitsrechner_Art_238_II!B10="x"),1,0) -> 0 | V6: =IF(Mehrheitsrechner_ab_11_2014!L33<28, IF(AND(SUM(V7:V32)<1,'Technische Tabelle'!S6<1),Mehrheitsrechner_ab_11_2014!P6,0),0) -> 0 | W6: =IF(AND(Mehrheitsrechner_Art_238_II!C10="n",Mehrheitsrechner_Art_238_II!B10="x"),1*Mehrheitsrechner_Art_238_II!D10,0) -> 0
A7: Vereinigtes Königreich | B7: =IF(Mehrheitsrechner_ab_11_2014!C7="n",1,0) -> 0 | C7: =IF(Mehrheitsrechner_ab_11_2014!C7="n",1*Mehrheitsrechner_ab_11_2014!D7,0) -> 0 | D7: =IF(Mehrheitsrechner_Art_238_II!B11="n",1,0) -> 0 | E7: =IF(Mehrheitsrechner_Art_238_II!B11="n",1*Mehrheitsrechner_Art_238_II!C11,0) -> 0 | F7: =IF(Mehrheitsrechner_Art_3_II_Prot!C7="n",1,0) -> 0 | G7: =IF(Mehrheitsrechner_Art_3_II_Prot!C7="n",1*Mehrheitsrechner_Art_3_II_Prot!F7,0) -> 0 | I7: =IF(AND(Mehrheitsrechner_ab_11_2014!C7="J",Mehrheitsrechner_ab_11_2014!B7="x"),1,0) -> 1 | J7: =IF(AND(Mehrheitsrechner_ab_11_2014!C7="N",Mehrheitsrechner_ab_11_2014!B7="x"),1,0) -> 0 | K7: =IF(AND(Mehrheitsrechner_ab_11_2014!C7="e",Mehrheitsrechner_ab_11_2014!B7="x"),1,0) -> 0 | L7: =IF(Mehrheitsrechner_ab_11_2014!B33<28, IF(AND(SUM(L8:L32)<1,'Technische Tabelle'!I7<1),Mehrheitsrechner_ab_11_2014!F7,0),0) -> 0 | M7: =IF(AND(Mehrheitsrechner_ab_11_2014!C7="n",Mehrheitsrechner_ab_11_2014!B7="x"),1*Mehrheitsrechner_ab_11_2014!D7,0) -> 0 | N7: =IF(AND(Mehrheitsrechner_Art_3_II_Prot!B7="x",Mehrheitsrechner_Art_3_II_Prot!C7="J"),1,0) -> 1 | O7: =IF(AND(Mehrheitsrechner_Art_3_II_Prot!B7="x",Mehrheitsrechner_Art_3_II_Prot!C7="N"),1,0) -> 0 | P7: =IF(AND(Mehrheitsrechner_ab_11_2014!H7="e",Mehrheitsrechner_ab_11_2014!G7="x"),1,0) -> 0 | Q7: =IF(Mehrheitsrechner_ab_11_2014!G33<28, IF(AND(SUM(Q8:Q32)<1,'Technische Tabelle'!N7<1),Mehrheitsrechner_ab_11_2014!K7,0),0) -> 0 | R7: =IF(AND(Mehrheitsrechner_Art_3_II_Prot!C7="n",Mehrheitsrechner_Art_3_II_Prot!B7="x"),1*Mehrheitsrechner_Art_3_II_Prot!F7,0) -> 0 | S7: =IF(AND(Mehrheitsrechner_Art_238_II!B11="x",Mehrheitsrechner_Art_238_II!C11="J"),1,0) -> 1 | T7: =IF(AND(Mehrheitsrechner_Art_238_II!B11="x",Mehrheitsrechner_Art_238_II!C11="N"),1,0) -> 0 | U7: =IF(AND(Mehrheitsrechner_Art_238_II!C11="e",Mehrheitsrechner_Art_238_II!B11="x"),1,0) -> 0 | V7: =IF(Mehrheitsrechner_ab_11_2014!L33<28, IF(AND(SUM(V8:V32)<1,'Technische Tabelle'!S7<1),Mehrheitsrechner_ab_11_2014!P7,0),0) -> 0 | W7: =IF(AND(Mehrheitsrechner_Art_238_II!C11="n",Mehrheitsrechner_Art_238_II!B11="x"),1*Mehrheitsrechner_Art_238_II!D11,0) -> 0
A8: Italien | B8: =IF(Mehrheitsrechner_ab_11_2014!C8="n",1,0) -> 0 | C8: =IF(Mehrheitsrechner_ab_11_2014!C8="n",1*Mehrheitsrechner_ab_11_2014!D8,0) -> 0 | D8: =IF(Mehrheitsrechner_Art_238_II!B12="n",1,0) -> 0 | E8: =IF(Mehrheitsrechner_Art_238_II!B12="n",1*Mehrheitsrechner_Art_238_II!C12,0) -> 0 | F8: =IF(Mehrheitsrechner_Art_3_II_Prot!C8="n",1,0) -> 0 | G8: =IF(Mehrheitsrechner_Art_3_II_Prot!C8="n",1*Mehrheitsrechner_Art_3_II_Prot!F8,0) -> 0 | I8: =IF(AND(Mehrheitsrechner_ab_11_2014!C8="J",Mehrheitsrechner_ab_11_2014!B8="x"),1,0) -> 1 | J8: =IF(AND(Mehrheitsrechner_ab_11_2014!C8="N",Mehrheitsrechner_ab_11_2014!B8="x"),1,0) -> 0 | K8: =IF(AND(Mehrheitsrechner_ab_11_2014!C8="e",Mehrheitsrechner_ab_11_2014!B8="x"),1,0) -> 0 | L8: =IF(Mehrheitsrechner_ab_11_2014!B33<28, IF(AND(SUM(L9:L32)<1,'Technische Tabelle'!I8<1),Mehrheitsrechner_ab_11_2014!F8,0),0) -> 0 | M8: =IF(AND(Mehrheitsrechner_ab_11_2014!C8="n",Mehrheitsrechner_ab_11_2014!B8="x"),1*Mehrheitsrechner_ab_11_2014!D8,0) -> 0 | N8: =IF(AND(Mehrheitsrechner_Art_3_II_Prot!B8="x",Mehrheitsrechner_Art_3_II_Prot!C8="J"),1,0) -> 1 | O8: =IF(AND(Mehrheitsrechner_Art_3_II_Prot!B8="x",Mehrheitsrechner_Art_3_II_Prot!C8="N"),1,0) -> 0 | P8: =IF(AND(Mehrheitsrechner_ab_11_2014!H8="e",Mehrheitsrechner_ab_11_2014!G8="x"),1,0) -> 0 | Q8: =IF(Mehrheitsrechner_ab_11_2014!G33<28, IF(AND(SUM(Q9:Q32)<1,'Technische Tabelle'!N8<1),Mehrheitsrechner_ab_11_2014!K8,0),0) -> 0 | R8: =IF(AND(Mehrheitsrechner_Art_3_II_Prot!C8="n",Mehrheitsrechner_Art_3_II_Prot!B8="x"),1*Mehrheitsrechner_Art_3_II_Prot!F8,0) -> 0 | S8: =IF(AND(Mehrheitsrechner_Art_238_II!B12="x",Mehrheitsrechner_Art_238_II!C12="J"),1,0) -> 1 | T8: =IF(AND(Mehrheitsrechner_Art_238_II!B12="x",Mehrheitsrechner_Art_238_II!C12="N"),1,0) -> 0 | U8: =IF(AND(Mehrheitsrechner_Art_238_II!C12="e",Mehrheitsrechner_Art_238_II!B12="x"),1,0) -> 0 | V8: =IF(Mehrheitsrechner_ab_11_2014!L33<28, IF(AND(SUM(V9:V32)<1,'Technische Tabelle'!S8<1),Mehrheitsrechner_ab_11_2014!P8,0),0) -> 0 | W8: =IF(AND(Mehrheitsrechner_Art_238_II!C12="n",Mehrheitsrechner_Art_238_II!B12="x"),1*Mehrheitsrechner_Art_238_II!D12,0) -> 0
A9: Spanien | B9: =IF(Mehrheitsrechner_ab_11_2014!C9="n",1,0) -> 0 | C9: =IF(Mehrheitsrechner_ab_11_2014!C9="n",1*Mehrheitsrechner_ab_11_2014!D9,0) -> 0 | D9: =IF(Mehrheitsrechner_Art_238_II!B13="n",1,0) -> 0 | E9: =IF(Mehrheitsrechner_Art_238_II!B13="n",1*Mehrheitsrechner_Art_238_II!C13,0) -> 0 | F9: =IF(Mehrheitsrechner_Art_3_II_Prot!C9="n",1,0) -> 0 | G9: =IF(Mehrheitsrechner_Art_3_II_Prot!C9="n",1*Mehrheitsrechner_Art_3_II_Prot!F9,0) -> 0 | I9: =IF(AND(Mehrheitsrechner_ab_11_2014!C9="J",Mehrheitsrechner_ab_11_2014!B9="x"),1,0) -> 1 | J9: =IF(AND(Mehrheitsrechner_ab_11_2014!C9="N",Mehrheitsrechner_ab_11_2014!B9="x"),1,0) -> 0 | K9: =IF(AND(Mehrheitsrechner_ab_11_2014!C9="e",Mehrheitsrechner_ab_11_2014!B9="x"),1,0) -> 0 | L9: =IF(Mehrheitsrechner_ab_11_2014!B33<28, IF(AND(SUM(L10:L32)<1,'Technische Tabelle'!I9<1),Mehrheitsrechner_ab_11_2014!F9,0),0) -> 0 | M9: =IF(AND(Mehrheitsrechner_ab_11_2014!C9="n",Mehrheitsrechner_ab_11_2014!B9="x"),1*Mehrheitsrechner_ab_11_2014!D9,0) -> 0 | N9: =IF(AND(Mehrheitsrechner_Art_3_II_Prot!B9="x",Mehrheitsrechner_Art_3_II_Prot!C9="J"),1,0) -> 1 | O9: =IF(AND(Mehrheitsrechner_Art_3_II_Prot!B9="x",Mehrheitsrechner_Art_3_II_Prot!C9="N"),1,0) -> 0 | P9: =IF(AND(Mehrheitsrechner_ab_11_2014!H9="e",Mehrheitsrechner_ab_11_2014!G9="x"),1,0) -> 0 | Q9: =IF(Mehrheitsrechner_ab_11_2014!G33<28, IF(AND(SUM(Q10:Q32)<1,'Technische Tabelle'!N9<1),Mehrheitsrechner_ab_11_2014!K9,0),0) -> 0 | R9: =IF(AND(Mehrheitsrechner_Art_3_II_Prot!C9="n",Mehrheitsrechner_Art_3_II_Prot!B9="x"),1*Mehrheitsrechner_Art_3_II_Prot!F9,0) -> 0 | S9: =IF(AND(Mehrheitsrechner_Art_238_II!B13="x",Mehrheitsrechner_Art_238_II!C13="J"),1,0) -> 1 | T9: =IF(AND(Mehrheitsrechner_Art_238_II!B13="x",Mehrheitsrechner_Art_238_II!C13="N"),1,0) -> 0 | U9: =IF(AND(Mehrheitsrechner_Art_238_II!C13="e",Mehrheitsrechner_Art_238_II!B13="x"),1,0) -> 0 | V9: =IF(Mehrheitsrechner_ab_11_2014!L33<28, IF(AND(SUM(V10:V32)<1,'Technische Tabelle'!S9<1),Mehrheitsrechner_ab_11_2014!P9,0),0) -> 0 | W9: =IF(AND(Mehrheitsrechner_Art_238_II!C13="n",Mehrheitsrechner_Art_238_II!B13="x"),1*Mehrheitsrechner_Art_238_II!D13,0) -> 0
A10: Polen | B10: =IF(Mehrheitsrechner_ab_11_2014!C10="n",1,0) -> 0 | C10: =IF(Mehrheitsrechner_ab_11_2014!C10="n",1*Mehrheitsrechner_ab_11_2014!D10,0) -> 0 | D10: =IF(Mehrheitsrechner_Art_238_II!B14="n",1,0) -> 0 | E10: =IF(Mehrheitsrechner_Art_238_II!B14="n",1*Mehrheitsrechner_Art_238_II!C14,0) -> 0 | F10: =IF(Mehrheitsrechner_Art_3_II_Prot!C10="n",1,0) -> 0 | G10: =IF(Mehrheitsrechner_Art_3_II_Prot!C10="n",1*Mehrheitsrechner_Art_3_II_Prot!F10,0) -> 0 | I10: =IF(AND(Mehrheitsrechner_ab_11_2014!C10="J",Mehrheitsrechner_ab_11_2014!B10="x"),1,0) -> 1 | J10: =IF(AND(Mehrheitsrechner_ab_11_2014!C10="N",Mehrheitsrechner_ab_11_2014!B10="x"),1,0) -> 0 | K10: =IF(AND(Mehrheitsrechner_ab_11_2014!C10="e",Mehrheitsrechner_ab_11_2014!B10="x"),1,0) -> 0 | L10: =IF(Mehrheitsrechner_ab_11_2014!B33<28, IF(AND(SUM(L11:L32)<1,'Technische Tabelle'!I10<1),Mehrheitsrechner_ab_11_2014!F10,0),0) -> 0 | M10: =IF(AND(Mehrheitsrechner_ab_11_2014!C10="n",Mehrheitsrechner_ab_11_2014!B10="x"),1*Mehrheitsrechner_ab_11_2014!D10,0) -> 0 | N10: =IF(AND(Mehrheitsrechner_Art_3_II_Prot!B10="x",Mehrheitsrechner_Art_3_II_Prot!C10="J"),1,0) -> 1 | O10: =IF(AND(Mehrheitsrechner_Art_3_II_Prot!B10="x",Mehrheitsrechner_Art_3_II_Prot!C10="N"),1,0) -> 0 | P10: =IF(AND(Mehrheitsrechner_ab_11_2014!H10="e",Mehrheitsrechner_ab_11_2014!G10="x"),1,0) -> 0 | Q10: =IF(Mehrheitsrechner_ab_11_2014!G33<28, IF(AND(SUM(Q11:Q32)<1,'Technische Tabelle'!N10<1),Mehrheitsrechner_ab_11_2014!K10,0),0) -> 0 | R10: =IF(AND(Mehrheitsrechner_Art_3_II_Prot!C10="n",Mehrheitsrechner_Art_3_II_Prot!B10="x"),1*Mehrheitsrechner_Art_3_II_Prot!F10,0) -> 0 | S10: =IF(AND(Mehrheitsrechner_Art_238_II!B14="x",Mehrheitsrechner_Art_238_II!C14="J"),1,0) -> 1 | T10: =IF(AND(Mehrheitsrechner_Art_238_II!B14="x",Mehrheitsrechner_Art_238_II!C14="N"),1,0) -> 0 | U10: =IF(AND(Mehrheitsrechner_Art_238_II!C14="e",Mehrheitsrechner_Art_238_II!B14="x"),1,0) -> 0 | V10: =IF(Mehrheitsrechner_ab_11_2014!L33<28, IF(AND(SUM(V11:V32)<1,'Technische Tabelle'!S10<1),Mehrheitsrechner_ab_11_2014!P10,0),0) -> 0 | W10: =IF(AND(Mehrheitsrechner_Art_238_II!C14="n",Mehrheitsrechner_Art_238_II!B14="x"),1*Mehrheitsrechner_Art_238_II!D14,0) -> 0
A11: Rumänien | B11: =IF(Mehrheitsrechner_ab_11_2014!C11="n",1,0) -> 0 | C11: =IF(Mehrheitsrechner_ab_11_2014!C11="n",1*Mehrheitsrechner_ab_11_2014!D11,0) -> 0 | D11: =IF(Mehrheitsrechner_Art_238_II!B15="n",1,0) -> 0 | E11: =IF(Mehrheitsrechner_Art_238_II!B15="n",1*Mehrheitsrechner_Art_238_II!C15,0) -> 0 | F11: =IF(Mehrheitsrechner_Art_3_II_Prot!C11="n",1,0) -> 0 | G11: =IF(Mehrheitsrechner_Art_3_II_Prot!C11="n",1*Mehrheitsrechner_Art_3_II_Prot!F11,0) -> 0 | I11: =IF(AND(Mehrheitsrechner_ab_11_2014!C11="J",Mehrheitsrechner_ab_11_2014!B11="x"),1,0) -> 1 | J11: =IF(AND(Mehrheitsrechner_ab_11_2014!C11="N",Mehrheitsrechner_ab_11_2014!B11="x"),1,0) -> 0 | K11: =IF(AND(Mehrheitsrechner_ab_11_2014!C11="e",Mehrheitsrechner_ab_11_2014!B11="x"),1,0) -> 0 | L11: =IF(Mehrheitsrechner_ab_11_2014!B33<28, IF(AND(SUM(L12:L32)<1,'Technische Tabelle'!I11<1),Mehrheitsrechner_ab_11_2014!F11,0),0) -> 0 | M11: =IF(AND(Mehrheitsrechner_ab_11_2014!C11="n",Mehrheitsrechner_ab_11_2014!B11="x"),1*Mehrheitsrechner_ab_11_2014!D11,0) -> 0 | N11: =IF(AND(Mehrheitsrechner_Art_3_II_Prot!B11="x",Mehrheitsrechner_Art_3_II_Prot!C11="J"),1,0) -> 1 | O11: =IF(AND(Mehrheitsrechner_Art_3_II_Prot!B11="x",Mehrheitsrechner_Art_3_II_Prot!C11="N"),1,0) -> 0 | P11: =IF(AND(Mehrheitsrechner_ab_11_2014!H11="e",Mehrheitsrechner_ab_11_2014!G11="x"),1,0) -> 0 | Q11: =IF(Mehrheitsrechner_ab_11_2014!G33<28, IF(AND(SUM(Q12:Q32)<1,'Technische Tabelle'!N11<1),Mehrheitsrechner_ab_11_2014!K11,0),0) -> 0 | R11: =IF(AND(Mehrheitsrechner_Art_3_II_Prot!C11="n",Mehrheitsrechner_Art_3_II_Prot!B11="x"),1*Mehrheitsrechner_Art_3_II_Prot!F11,0) -> 0 | S11: =IF(AND(Mehrheitsrechner_Art_238_II!B15="x",Mehrheitsrechner_Art_238_II!C15="J"),1,0) -> 1 | T11: =IF(AND(Mehrheitsrechner_Art_238_II!B15="x",Mehrheitsrechner_Art_238_II!C15="N"),1,0) -> 0 | U11: =IF(AND(Mehrheitsrechner_Art_238_II!C15="e",Mehrheitsrechner_Art_238_II!B15="x"),1,0) -> 0 | V11: =IF(Mehrheitsrechner_ab_11_2014!L33<28, IF(AND(SUM(V12:V32)<1,'Technische Tabelle'!S11<1),Mehrheitsrechner_ab_11_2014!P11,0),0) -> 0 | W11: =IF(AND(Mehrheitsrechner_Art_238_II!C15="n",Mehrheitsrechner_Art_238_II!B15="x"),1*Mehrheitsrechner_Art_238_II!D15,0) -> 0
A12: Niederlande | B12: =IF(Mehrheitsrechner_ab_11_2014!C12="n",1,0) -> 0 | C12: =IF(Mehrheitsrechner_ab_11_2014!C12="n",1*Mehrheitsrechner_ab_11_2014!D12,0) -> 0 | D12: =IF(Mehrheitsrechner_Art_238_II!B16="n",1,0) -> 0 | E12: =IF(Mehrheitsrechner_Art_238_II!B16="n",1*Mehrheitsrechner_Art_238_II!C16,0) -> 0 | F12: =IF(Mehrheitsrechner_Art_3_II_Prot!C12="n",1,0) -> 0 | G12: =IF(Mehrheitsrechner_Art_3_II_Prot!C12="n",1*Mehrheitsrechner_Art_3_II_Prot!F12,0) -> 0 | I12: =IF(AND(Mehrheitsrechner_ab_11_2014!C12="J",Mehrheitsrechner_ab_11_2014!B12="x"),1,0) -> 1 | J12: =IF(AND(Mehrheitsrechner_ab_11_2014!C12="N",Mehrheitsrechner_ab_11_2014!B12="x"),1,0) -> 0 | K12: =IF(AND(Mehrheitsrechner_ab_11_2014!C12="e",Mehrheitsrechner_ab_11_2014!B12="x"),1,0) -> 0 | L12: =IF(Mehrheitsrechner_ab_11_2014!B33<28, IF(AND(SUM(L13:L32)<1,'Technische Tabelle'!I12<1),Mehrheitsrechner_ab_11_2014!F12,0),0) -> 0 | M12: =IF(AND(Mehrheitsrechner_ab_11_2014!C12="n",Mehrheitsrechner_ab_11_2014!B12="x"),1*Mehrheitsrechner_ab_11_2014!D12,0) -> 0 | N12: =IF(AND(Mehrheitsrechner_Art_3_II_Prot!B12="x",Mehrheitsrechner_Art_3_II_Prot!C12="J"),1,0) -> 1 | O12: =IF(AND(Mehrheitsrechner_Art_3_II_Prot!B12="x",Mehrheitsrechner_Art_3_II_Prot!C12="N"),1,0) -> 0 | P12: =IF(AND(Mehrheitsrechner_ab_11_2014!H12="e",Mehrheitsrechner_ab_11_2014!G12="x"),1,0) -> 0 | Q12: =IF(Mehrheitsrechner_ab_11_2014!G33<28, IF(AND(SUM(Q13:Q32)<1,'Technische Tabelle'!N12<1),Mehrheitsrechner_ab_11_2014!K12,0),0) -> 0 | R12: =IF(AND(Mehrheitsrechner_Art_3_II_Prot!C12="n",Mehrheitsrechner_Art_3_II_Prot!B12="x"),1*Mehrheitsrechner_Art_3_II_Prot!F12,0) -> 0 | S12: =IF(AND(Mehrheitsrechner_Art_238_II!B16="x",Mehrheitsrechner_Art_238_II!C16="J"),1,0) -> 1 | T12: =IF(AND(Mehrheitsrechner_Art_238_II!B16="x",Mehrheitsrechner_Art_238_II!C16="N"),1,0) -> 0 | U12: =IF(AND(Mehrheitsrechner_Art_238_II!C16="e",Mehrheitsrechner_Art_238_II!B16="x"),1,0) -> 0 | V12: =IF(Mehrheitsrechner_ab_11_2014!L33<28, IF(AND(SUM(V13:V32)<1,'Technische Tabelle'!S12<1),Mehrheitsrechner_ab_11_2014!P12,0),0) -> 0 | W12: =IF(AND(Mehrheitsrechner_Art_238_II!C16="n",Mehrheitsrechner_Art_238_II!B16="x"),1*Mehrheitsrechner_Art_238_II!D16,0) -> 0
A13: Griechenland | B13: =IF(Mehrheitsrechner_ab_11_2014!C13="n",1,0) -> 0 | C13: =IF(Mehrheitsrechner_ab_11_2014!C13="n",1*Mehrheitsrechner_ab_11_2014!D13,0) -> 0 | D13: =IF(Mehrheitsrechner_Art_238_II!B17="n",1,0) -> 0 | E13: =IF(Mehrheitsrechner_Art_238_II!B17="n",1*Mehrheitsrechner_Art_238_II!C17,0) -> 0 | F13: =IF(Mehrheitsrechner_Art_3_II_Prot!C13="n",1,0) -> 0 | G13: =IF(Mehrheitsrechner_Art_3_II_Prot!C13="n",1*Mehrheitsrechner_Art_3_II_Prot!F13,0) -> 0 | I13: =IF(AND(Mehrheitsrechner_ab_11_2014!C13="J",Mehrheitsrechner_ab_11_2014!B13="x"),1,0) -> 1 | J13: =IF(AND(Mehrheitsrechner_ab_11_2014!C13="N",Mehrheitsrechner_ab_11_2014!B13="x"),1,0) -> 0 | K13: =IF(AND(Mehrheitsrechner_ab_11_2014!C13="e",Mehrheitsrechner_ab_11_2014!B13="x"),1,0) -> 0 | L13: =IF(Mehrheitsrechner_ab_11_2014!B33<28, IF(AND(SUM(L14:L32)<1,'Technische Tabelle'!I13<1),Mehrheitsrechner_ab_11_2014!F13,0),0) -> 0 | M13: =IF(AND(Mehrheitsrechner_ab_11_2014!C13="n",Mehrheitsrechner_ab_11_2014!B13="x"),1*Mehrheitsrechner_ab_11_2014!D13,0) -> 0 | N13: =IF(AND(Mehrheitsrechner_Art_3_II_Prot!B13="x",Mehrheitsrechner_Art_3_II_Prot!C13="J"),1,0) -> 1 | O13: =IF(AND(Mehrheitsrechner_Art_3_II_Prot!B13="x",Mehrheitsrechner_Art_3_II_Prot!C13="N"),1,0) -> 0 | P13: =IF(AND(Mehrheitsrechner_ab_11_2014!H13="e",Mehrheitsrechner_ab_11_2014!G13="x"),1,0) -> 0 | Q13: =IF(Mehrheitsrechner_ab_11_2014!G33<28, IF(AND(SUM(Q14:Q32)<1,'Technische Tabelle'!N13<1),Mehrheitsrechner_ab_11_2014!K13,0),0) -> 0 | R13: =IF(AND(Mehrheitsrechner_Art_3_II_Prot!C13="n",Mehrheitsrechner_Art_3_II_Prot!B13="x"),1*Mehrheitsrechner_Art_3_II_Prot!F13,0) -> 0 | S13: =IF(AND(Mehrheitsrechner_Art_238_II!B17="x",Mehrheitsrechner_Art_238_II!C17="J"),1,0) -> 1 | T13: =IF(AND(Mehrheitsrechner_Art_238_II!B17="x",Mehrheitsrechner_Art_238_II!C17="N"),1,0) -> 0 | U13: =IF(AND(Mehrheitsrechner_Art_238_II!C17="e",Mehrheitsrechner_Art_238_II!B17="x"),1,0) -> 0 | V13: =IF(Mehrheitsrechner_ab_11_2014!L33<28, IF(AND(SUM(V14:V32)<1,'Technische Tabelle'!S13<1),Mehrheitsrechner_ab_11_2014!P13,0),0) -> 0 | W13: =IF(AND(Mehrheitsrechner_Art_238_II!C17="n",Mehrheitsrechner_Art_238_II!B17="x"),1*Mehrheitsrechner_Art_238_II!D17,0) -> 0
A14: Belgien | B14: =IF(Mehrheitsrechner_ab_11_2014!C14="n",1,0) -> 0 | C14: =IF(Mehrheitsrechner_ab_11_2014!C14="n",1*Mehrheitsrechner_ab_11_2014!D14,0) -> 0 | D14: =IF(Mehrheitsrechner_Art_238_II!B18="n",1,0) -> 0 | E14: =IF(Mehrheitsrechner_Art_238_II!B18="n",1*Mehrheitsrechner_Art_238_II!C18,0) -> 0 | F14: =IF(Mehrheitsrechner_Art_3_II_Prot!C14="n",1,0) -> 0 | G14: =IF(Mehrheitsrechner_Art_3_II_Prot!C14="n",1*Mehrheitsrechner_Art_3_II_Prot!F14,0) -> 0 | I14: =IF(AND(Mehrheitsrechner_ab_11_2014!C14="J",Mehrheitsrechner_ab_11_2014!B14="x"),1,0) -> 1 | J14: =IF(AND(Mehrheitsrechner_ab_11_2014!C14="N",Mehrheitsrechner_ab_11_2014!B14="x"),1,0) -> 0 | K14: =IF(AND(Mehrheitsrechner_ab_11_2014!C14="e",Mehrheitsrechner_ab_11_2014!B14="x"),1,0) -> 0 | L14: =IF(Mehrheitsrechner_ab_11_2014!B33<28, IF(AND(SUM(L15:L32)<1,'Technische Tabelle'!I14<1),Mehrheitsrechner_ab_11_2014!F14,0),0) -> 0 | M14: =IF(AND(Mehrheitsrechner_ab_11_2014!C14="n",Mehrheitsrechner_ab_11_2014!B14="x"),1*Mehrheitsrechner_ab_11_2014!D14,0) -> 0 | N14: =IF(AND(Mehrheitsrechner_Art_3_II_Prot!B14="x",Mehrheitsrechner_Art_3_II_Prot!C14="J"),1,0) -> 1 | O14: =IF(AND(Mehrheitsrechner_Art_3_II_Prot!B14="x",Mehrheitsrechner_Art_3_II_Prot!C14="N"),1,0) -> 0 | P14: =IF(AND(Mehrheitsrechner_ab_11_2014!H14="e",Mehrheitsrechner_ab_11_2014!G14="x"),1,0) -> 0 | Q14: =IF(Mehrheitsrechner_ab_11_2014!G33<28, IF(AND(SUM(Q15:Q32)<1,'Technische Tabelle'!N14<1),Mehrheitsrechner_ab_11_2014!K14,0),0) -> 0 | R14: =IF(AND(Mehrheitsrechner_Art_3_II_Prot!C14="n",Mehrheitsrechner_Art_3_II_Prot!B14="x"),1*Mehrheitsrechner_Art_3_II_Prot!F14,0) -> 0 | S14: =IF(AND(Mehrheitsrechner_Art_238_II!B18="x",Mehrheitsrechner_Art_238_II!C18="J"),1,0) -> 1 | T14: =IF(AND(Mehrheitsrechner_Art_238_II!B18="x",Mehrheitsrechner_Art_238_II!C18="N"),1,0) -> 0 | U14: =IF(AND(Mehrheitsrechner_Art_238_II!C18="e",Mehrheitsrechner_Art_238_II!B18="x"),1,0) -> 0 | V14: =IF(Mehrheitsrechner_ab_11_2014!L33<28, IF(AND(SUM(V15:V32)<1,'Technische Tabelle'!S14<1),Mehrheitsrechner_ab_11_2014!P14,0),0) -> 0 | W14: =IF(AND(Mehrheitsrechner_Art_238_II!C18="n",Mehrheitsrechner_Art_238_II!B18="x"),1*Mehrheitsrechner_Art_238_II!D18,0) -> 0
A15: Portugal | B15: =IF(Mehrheitsrechner_ab_11_2014!C15="n",1,0) -> 0 | C15: =IF(Mehrheitsrechner_ab_11_2014!C15="n",1*Mehrheitsrechner_ab_11_2014!D15,0) -> 0 | D15: =IF(Mehrheitsrechner_Art_238_II!B19="n",1,0) -> 0 | E15: =IF(Mehrheitsrechner_Art_238_II!B19="n",1*Mehrheitsrechner_Art_238_II!C19,0) -> 0 | F15: =IF(Mehrheitsrechner_Art_3_II_Prot!C15="n",1,0) -> 0 | G15: =IF(Mehrheitsrechner_Art_3_II_Prot!C15="n",1*Mehrheitsrechner_Art_3_II_Prot!F15,0) -> 0 | I15: =IF(AND(Mehrheitsrechner_ab_11_2014!C15="J",Mehrheitsrechner_ab_11_2014!B15="x"),1,0) -> 1 | J15: =IF(AND(Mehrheitsrechner_ab_11_2014!C15="N",Mehrheitsrechner_ab_11_2014!B15="x"),1,0) -> 0 | K15: =IF(AND(Mehrheitsrechner_ab_11_2014!C15="e",Mehrheitsrechner_ab_11_2014!B15="x"),1,0) -> 0 | L15: =IF(Mehrheitsrechner_ab_11_2014!B33<28, IF(AND(SUM(L16:L32)<1,'Technische Tabelle'!I15<1),Mehrheitsrechner_ab_11_2014!F15,0),0) -> 0 | M15: =IF(AND(Mehrheitsrechner_ab_11_2014!C15="n",Mehrheitsrechner_ab_11_2014!B15="x"),1*Mehrheitsrechner_ab_11_2014!D15,0) -> 0 | N15: =IF(AND(Mehrheitsrechner_Art_3_II_Prot!B15="x",Mehrheitsrechner_Art_3_II_Prot!C15="J"),1,0) -> 1 | O15: =IF(AND(Mehrheitsrechner_Art_3_II_Prot!B15="x",Mehrheitsrechner_Art_3_II_Prot!C15="N"),1,0) -> 0 | P15: =IF(AND(Mehrheitsrechner_ab_11_2014!H15="e",Mehrheitsrechner_ab_11_2014!G15="x"),1,0) -> 0 | Q15: =IF(Mehrheitsrechner_ab_11_2014!G33<28, IF(AND(SUM(Q16:Q32)<1,'Technische Tabelle'!N15<1),Mehrheitsrechner_ab_11_2014!K15,0),0) -> 0 | R15: =IF(AND(Mehrheitsrechner_Art_3_II_Prot!C15="n",Mehrheitsrechner_Art_3_II_Prot!B15="x"),1*Mehrheitsrechner_Art_3_II_Prot!F15,0) -> 0 | S15: =IF(AND(Mehrheitsrechner_Art_238_II!B19="x",Mehrheitsrechner_Art_238_II!C19="J"),1,0) -> 1 | T15: =IF(AND(Mehrheitsrechner_Art_238_II!B19="x",Mehrheitsrechner_Art_238_II!C19="N"),1,0) -> 0 | U15: =IF(AND(Mehrheitsrechner_Art_238_II!C19="e",Mehrheitsrechner_Art_238_II!B19="x"),1,0) -> 0 | V15: =IF(Mehrheitsrechner_ab_11_2014!L33<28, IF(AND(SUM(V16:V32)<1,'Technische Tabelle'!S15<1),Mehrheitsrechner_ab_11_2014!P15,0),0) -> 0 | W15: =IF(AND(Mehrheitsrechner_Art_238_II!C19="n",Mehrheitsrechner_Art_238_II!B19="x"),1*Mehrheitsrechner_Art_238_II!D19,0) -> 0
A16: Tschechische Republik | B16: =IF(Mehrheitsrechner_ab_11_2014!C16="n",1,0) -> 0 | C16: =IF(Mehrheitsrechner_ab_11_2014!C16="n",1*Mehrheitsrechner_ab_11_2014!D16,0) -> 0 | D16: =IF(Mehrheitsrechner_Art_238_II!B20="n",1,0) -> 0 | E16: =IF(Mehrheitsrechner_Art_238_II!B20="n",1*Mehrheitsrechner_Art_238_II!C20,0) -> 0 | F16: =IF(Mehrheitsrechner_Art_3_II_Prot!C16="n",1,0) -> 0 | G16: =IF(Mehrheitsrechner_Art_3_II_Prot!C16="n",1*Mehrheitsrechner_Art_3_II_Prot!F16,0) -> 0 | I16: =IF(AND(Mehrheitsrechner_ab_11_2014!C16="J",Mehrheitsrechner_ab_11_2014!B16="x"),1,0) -> 1 | J16: =IF(AND(Mehrheitsrechner_ab_11_2014!C16="N",Mehrheitsrechner_ab_11_2014!B16="x"),1,0) -> 0 | K16: =IF(AND(Mehrheitsrechner_ab_11_2014!C16="e",Mehrheitsrechner_ab_11_2014!B16="x"),1,0) -> 0 | L16: =IF(Mehrheitsrechner_ab_11_2014!B33<28, IF(AND(SUM(L17:L32)<1,'Technische Tabelle'!I16<1),Mehrheitsrechner_ab_11_2014!F16,0),0) -> 0 | M16: =IF(AND(Mehrheitsrechner_ab_11_2014!C16="n",Mehrheitsrechner_ab_11_2014!B16="x"),1*Mehrheitsrechner_ab_11_2014!D16,0) -> 0 | N16: =IF(AND(Mehrheitsrechner_Art_3_II_Prot!B16="x",Mehrheitsrechner_Art_3_II_Prot!C16="J"),1,0) -> 1 | O16: =IF(AND(Mehrheitsrechner_Art_3_II_Prot!B16="x",Mehrheitsrechner_Art_3_II_Prot!C16="N"),1,0) -> 0 | P16: =IF(AND(Mehrheitsrechner_ab_11_2014!H16="e",Mehrheitsrechner_ab_11_2014!G16="x"),1,0) -> 0 | Q16: =IF(Mehrheitsrechner_ab_11_2014!G33<28, IF(AND(SUM(Q17:Q32)<1,'Technische Tabelle'!N16<1),Mehrheitsrechner_ab_11_2014!K16,0),0) -> 0 | R16: =IF(AND(Mehrheitsrechner_Art_3_II_Prot!C16="n",Mehrheitsrechner_Art_3_II_Prot!B16="x"),1*Mehrheitsrechner_Art_3_II_Prot!F16,0) -> 0 | S16: =IF(AND(Mehrheitsrechner_Art_238_II!B20="x",Mehrheitsrechner_Art_238_II!C20="J"),1,0) -> 1 | T16: =IF(AND(Mehrheitsrechner_Art_238_II!B20="x",Mehrheitsrechner_Art_238_II!C20="N"),1,0) -> 0 | U16: =IF(AND(Mehrheitsrechner_Art_238_II!C20="e",Mehrheitsrechner_Art_238_II!B20="x"),1,0) -> 0 | V16: =IF(Mehrheitsrechner_ab_11_2014!L33<28, IF(AND(SUM(V17:V32)<1,'Technische Tabelle'!S16<1),Mehrheitsrechner_ab_11_2014!P16,0),0) -> 0 | W16: =IF(AND(Mehrheitsrechner_Art_238_II!C20="n",Mehrheitsrechner_Art_238_II!B20="x"),1*Mehrheitsrechner_Art_238_II!D20,0) -> 0
A17: Ungarn | B17: =IF(Mehrheitsrechner_ab_11_2014!C17="n",1,0) -> 0 | C17: =IF(Mehrheitsrechner_ab_11_2014!C17="n",1*Mehrheitsrechner_ab_11_2014!D17,0) -> 0 | D17: =IF(Mehrheitsrechner_Art_238_II!B21="n",1,0) -> 0 | E17: =IF(Mehrheitsrechner_Art_238_II!B21="n",1*Mehrheitsrechner_Art_238_II!C21,0) -> 0 | F17: =IF(Mehrheitsrechner_Art_3_II_Prot!C17="n",1,0) -> 0 | G17: =IF(Mehrheitsrechner_Art_3_II_Prot!C17="n",1*Mehrheitsrechner_Art_3_II_Prot!F17,0) -> 0 | I17: =IF(AND(Mehrheitsrechner_ab_11_2014!C17="J",Mehrheitsrechner_ab_11_2014!B17="x"),1,0) -> 1 | J17: =IF(AND(Mehrheitsrechner_ab_11_2014!C17="N",Mehrheitsrechner_ab_11_2014!B17="x"),1,0) -> 0 | K17: =IF(AND(Mehrheitsrechner_ab_11_2014!C17="e",Mehrheitsrechner_ab_11_2014!B17="x"),1,0) -> 0 | L17: =IF(Mehrheitsrechner_ab_11_2014!B33<28, IF(AND(SUM(L18:L32)<1,'Technische Tabelle'!I17<1),Mehrheitsrechner_ab_11_2014!F17,0),0) -> 0 | M17: =IF(AND(Mehrheitsrechner_ab_11_2014!C17="n",Mehrheitsrechner_ab_11_2014!B17="x"),1*Mehrheitsrechner_ab_11_2014!D17,0) -> 0 | N17: =IF(AND(Mehrheitsrechner_Art_3_II_Prot!B17="x",Mehrheitsrechner_Art_3_II_Prot!C17="J"),1,0) -> 1 | O17: =IF(AND(Mehrheitsrechner_Art_3_II_Prot!B17="x",Mehrheitsrechner_Art_3_II_Prot!C17="N"),1,0) -> 0 | P17: =IF(AND(Mehrheitsrechner_ab_11_2014!H17="e",Mehrheitsrechner_ab_11_2014!G17="x"),1,0) -> 0 | Q17: =IF(Mehrheitsrechner_ab_11_2014!G33<28, IF(AND(SUM(Q18:Q32)<1,'Technische Tabelle'!N17<1),Mehrheitsrechner_ab_11_2014!K17,0),0) -> 0 | R17: =IF(AND(Mehrheitsrechner_Art_3_II_Prot!C17="n",Mehrheitsrechner_Art_3_II_Prot!B17="x"),1*Mehrheitsrechner_Art_3_II_Prot!F17,0) -> 0 | S17: =IF(AND(Mehrheitsrechner_Art_238_II!B21="x",Mehrheitsrechner_Art_238_II!C21="J"),1,0) -> 1 | T17: =IF(AND(Mehrheitsrechner_Art_238_II!B21="x",Mehrheitsrechner_Art_238_II!C21="N"),1,0) -> 0 | U17: =IF(AND(Mehrheitsrechner_Art_238_II!C21="e",Mehrheitsrechner_Art_238_II!B21="x"),1,0) -> 0 | V17: =IF(Mehrheitsrechner_ab_11_2014!L33<28, IF(AND(SUM(V18:V32)<1,'Technische Tabelle'!S17<1),Mehrheitsrechner_ab_11_2014!P17,0),0) -> 0 | W17: =IF(AND(Mehrheitsrechner_Art_238_II!C21="n",Mehrheitsrechner_Art_238_II!B21="x"),1*Mehrheitsrechner_Art_238_II!D21,0) -> 0
A18: Schweden | B18: =IF(Mehrheitsrechner_ab_11_2014!C18="n",1,0) -> 0 | C18: =IF(Mehrheitsrechner_ab_11_2014!C18="n",1*Mehrheitsrechner_ab_11_2014!D18,0) -> 0 | D18: =IF(Mehrheitsrechner_Art_238_II!B22="n",1,0) -> 0 | E18: =IF(Mehrheitsrechner_Art_238_II!B22="n",1*Mehrheitsrechner_Art_238_II!C22,0) -> 0 | F18: =IF(Mehrheitsrechner_Art_3_II_Prot!C18="n",1,0) -> 0 | G18: =IF(Mehrheitsrechner_Art_3_II_Prot!C18="n",1*Mehrheitsrechner_Art_3_II_Prot!F18,0) -> 0 | I18: =IF(AND(Mehrheitsrechner_ab_11_2014!C18="J",Mehrheitsrechner_ab_11_2014!B18="x"),1,0) -> 1 | J18: =IF(AND(Mehrheitsrechner_ab_11_2014!C18="N",Mehrheitsrechner_ab_11_2014!B18="x"),1,0) -> 0 | K18: =IF(AND(Mehrheitsrechner_ab_11_2014!C18="e",Mehrheitsrechner_ab_11_2014!B18="x"),1,0) -> 0 | L18: =IF(Mehrheitsrechner_ab_11_2014!B33<28, IF(AND(SUM(L19:L32)<1,'Technische Tabelle'!I18<1),Mehrheitsrechner_ab_11_2014!F18,0),0) -> 0 | M18: =IF(AND(Mehrheitsrechner_ab_11_2014!C18="n",Mehrheitsrechner_ab_11_2014!B18="x"),1*Mehrheitsrechner_ab_11_2014!D18,0) -> 0 | N18: =IF(AND(Mehrheitsrechner_Art_3_II_Prot!B18="x",Mehrheitsrechner_Art_3_II_Prot!C18="J"),1,0) -> 1 | O18: =IF(AND(Mehrheitsrechner_Art_3_II_Prot!B18="x",Mehrheitsrechner_Art_3_II_Prot!C18="N"),1,0) -> 0 | P18: =IF(AND(Mehrheitsrechner_ab_11_2014!H18="e",Mehrheitsrechner_ab_11_2014!G18="x"),1,0) -> 0 | Q18: =IF(Mehrheitsrechner_ab_11_2014!G33<28, IF(AND(SUM(Q19:Q32)<1,'Technische Tabelle'!N18<1),Mehrheitsrechner_ab_11_2014!K18,0),0) -> 0 | R18: =IF(AND(Mehrheitsrechner_Art_3_II_Prot!C18="n",Mehrheitsrechner_Art_3_II_Prot!B18="x"),1*Mehrheitsrechner_Art_3_II_Prot!F18,0) -> 0 | S18: =IF(AND(Mehrheitsrechner_Art_238_II!B22="x",Mehrheitsrechner_Art_238_II!C22="J"),1,0) -> 1 | T18: =IF(AND(Mehrheitsrechner_Art_238_II!B22="x",Mehrheitsrechner_Art_238_II!C22="N"),1,0) -> 0 | U18: =IF(AND(Mehrheitsrechner_Art_238_II!C22="e",Mehrheitsrechner_Art_238_II!B22="x"),1,0) -> 0 | V18: =IF(Mehrheitsrechner_ab_11_2014!L33<28, IF(AND(SUM(V19:V32)<1,'Technische Tabelle'!S18<1),Mehrheitsrechner_ab_11_2014!P18,0),0) -> 0 | W18: =IF(AND(Mehrheitsrechner_Art_238_II!C22="n",Mehrheitsrechner_Art_238_II!B22="x"),1*Mehrheitsrechner_Art_238_II!D22,0) -> 0
A19: Österreich | B19: =IF(Mehrheitsrechner_ab_11_2014!C19="n",1,0) -> 0 | C19: =IF(Mehrheitsrechner_ab_11_2014!C19="n",1*Mehrheitsrechner_ab_11_2014!D19,0) -> 0 | D19: =IF(Mehrheitsrechner_Art_238_II!B23="n",1,0) -> 0 | E19: =IF(Mehrheitsrechner_Art_238_II!B23="n",1*Mehrheitsrechner_Art_238_II!C23,0) -> 0 | F19: =IF(Mehrheitsrechner_Art_3_II_Prot!C19="n",1,0) -> 0 | G19: =IF(Mehrheitsrechner_Art_3_II_Prot!C19="n",1*Mehrheitsrechner_Art_3_II_Prot!F19,0) -> 0 | I19: =IF(AND(Mehrheitsrechner_ab_11_2014!C19="J",Mehrheitsrechner_ab_11_2014!B19="x"),1,0) -> 1 | J19: =IF(AND(Mehrheitsrechner_ab_11_2014!C19="N",Mehrheitsrechner_ab_11_2014!B19="x"),1,0) -> 0 | K19: =IF(AND(Mehrheitsrechner_ab_11_2014!C19="e",Mehrheitsrechner_ab_11_2014!B19="x"),1,0) -> 0 | L19: =IF(Mehrheitsrechner_ab_11_2014!B33<28, IF(AND(SUM(L20:L32)<1,'Technische Tabelle'!I19<1),Mehrheitsrechner_ab_11_2014!F19,0),0) -> 0 | M19: =IF(AND(Mehrheitsrechner_ab_11_2014!C19="n",Mehrheitsrechner_ab_11_2014!B19="x"),1*Mehrheitsrechner_ab_11_2014!D19,0) -> 0 | N19: =IF(AND(Mehrheitsrechner_Art_3_II_Prot!B19="x",Mehrheitsrechner_Art_3_II_Prot!C19="J"),1,0) -> 1 | O19: =IF(AND(Mehrheitsrechner_Art_3_II_Prot!B19="x",Mehrheitsrechner_Art_3_II_Prot!C19="N"),1,0) -> 0 | P19: =IF(AND(Mehrheitsrechner_ab_11_2014!H19="e",Mehrheitsrechner_ab_11_2014!G19="x"),1,0) -> 0 | Q19: =IF(Mehrheitsrechner_ab_11_2014!G33<28, IF(AND(SUM(Q20:Q32)<1,'Technische Tabelle'!N19<1),Mehrheitsrechner_ab_11_2014!K19,0),0) -> 0 | R19: =IF(AND(Mehrheitsrechner_Art_3_II_Prot!C19="n",Mehrheitsrechner_Art_3_II_Prot!B19="x"),1*Mehrheitsrechner_Art_3_II_Prot!F19,0) -> 0 | S19: =IF(AND(Mehrheitsrechner_Art_238_II!B23="x",Mehrheitsrechner_Art_238_II!C23="J"),1,0) -> 1 | T19: =IF(AND(Mehrheitsrechner_Art_238_II!B23="x",Mehrheitsrechner_Art_238_II!C23="N"),1,0) -> 0 | U19: =IF(AND(Mehrheitsrechner_Art_238_II!C23="e",Mehrheitsrechner_Art_238_II!B23="x"),1,0) -> 0 | V19: =IF(Mehrheitsrechner_ab_11_2014!L33<28, IF(AND(SUM(V20:V32)<1,'Technische Tabelle'!S19<1),Mehrheitsrechner_ab_11_2014!P19,0),0) -> 0 | W19: =IF(AND(Mehrheitsrechner_Art_238_II!C23="n",Mehrheitsrechner_Art_238_II!B23="x"),1*Mehrheitsrechner_Art_238_II!D23,0) -> 0
A20: Bulgarien | B20: =IF(Mehrheitsrechner_ab_11_2014!C20="n",1,0) -> 0 | C20: =IF(Mehrheitsrechner_ab_11_2014!C20="n",1*Mehrheitsrechner_ab_11_2014!D20,0) -> 0 | D20: =IF(Mehrheitsrechner_Art_238_II!B24="n",1,0) -> 0 | E20: =IF(Mehrheitsrechner_Art_238_II!B24="n",1*Mehrheitsrechner_Art_238_II!C24,0) -> 0 | F20: =IF(Mehrheitsrechner_Art_3_II_Prot!C20="n",1,0) -> 0 | G20: =IF(Mehrheitsrechner_Art_3_II_Prot!C20="n",1*Mehrheitsrechner_Art_3_II_Prot!F20,0) -> 0 | I20: =IF(AND(Mehrheitsrechner_ab_11_2014!C20="J",Mehrheitsrechner_ab_11_2014!B20="x"),1,0) -> 1 | J20: =IF(AND(Mehrheitsrechner_ab_11_2014!C20="N",Mehrheitsrechner_ab_11_2014!B20="x"),1,0) -> 0 | K20: =IF(AND(Mehrheitsrechner_ab_11_2014!C20="e",Mehrheitsrechner_ab_11_2014!B20="x"),1,0) -> 0 | L20: =IF(Mehrheitsrechner_ab_11_2014!B33<28, IF(AND(SUM(L21:L32)<1,'Technische Tabelle'!I20<1),Mehrheitsrechner_ab_11_2014!F20,0),0) -> 0 | M20: =IF(AND(Mehrheitsrechner_ab_11_2014!C20="n",Mehrheitsrechner_ab_11_2014!B20="x"),1*Mehrheitsrechner_ab_11_2014!D20,0) -> 0 | N20: =IF(AND(Mehrheitsrechner_Art_3_II_Prot!B20="x",Mehrheitsrechner_Art_3_II_Prot!C20="J"),1,0) -> 1 | O20: =IF(AND(Mehrheitsrechner_Art_3_II_Prot!B20="x",Mehrheitsrechner_Art_3_II_Prot!C20="N"),1,0) -> 0 | P20: =IF(AND(Mehrheitsrechner_ab_11_2014!H20="e",Mehrheitsrechner_ab_11_2014!G20="x"),1,0) -> 0 | Q20: =IF(Mehrheitsrechner_ab_11_2014!G33<28, IF(AND(SUM(Q21:Q32)<1,'Technische Tabelle'!N20<1),Mehrheitsrechner_ab_11_2014!K20,0),0) -> 0 | R20: =IF(AND(Mehrheitsrechner_Art_3_II_Prot!C20="n",Mehrheitsrechner_Art_3_II_Prot!B20="x"),1*Mehrheitsrechner_Art_3_II_Prot!F20,0) -> 0 | S20: =IF(AND(Mehrheitsrechner_Art_238_II!B24="x",Mehrheitsrechner_Art_238_II!C24="J"),1,0) -> 1 | T20: =IF(AND(Mehrheitsrechner_Art_238_II!B24="x",Mehrheitsrechner_Art_238_II!C24="N"),1,0) -> 0 | U20: =IF(AND(Mehrheitsrechner_Art_238_II!C24="e",Mehrheitsrechner_Art_238_II!B24="x"),1,0) -> 0 | V20: =IF(Mehrheitsrechner_ab_11_2014!L33<28, IF(AND(SUM(V21:V32)<1,'Technische Tabelle'!S20<1),Mehrheitsrechner_ab_11_2014!P20,0),0) -> 0 | W20: =IF(AND(Mehrheitsrechner_Art_238_II!C24="n",Mehrheitsrechner_Art_238_II!B24="x"),1*Mehrheitsrechner_Art_238_II!D24,0) -> 0
A21: Kroatien | B21: =IF(Mehrheitsrechner_ab_11_2014!C21="n",1,0) -> 0 | C21: =IF(Mehrheitsrechner_ab_11_2014!C21="n",1*Mehrheitsrechner_ab_11_2014!D21,0) -> 0 | D21: =IF(Mehrheitsrechner_Art_238_II!B25="n",1,0) -> 0 | E21: =IF(Mehrheitsrechner_Art_238_II!B25="n",1*Mehrheitsrechner_Art_238_II!C25,0) -> 0 | F21: =IF(Mehrheitsrechner_Art_3_II_Prot!C21="n",1,0) -> 0 | G21: =IF(Mehrheitsrechner_Art_3_II_Prot!C21="n",1*Mehrheitsrechner_Art_3_II_Prot!F21,0) -> 0 | I21: =IF(AND(Mehrheitsrechner_ab_11_2014!C21="J",Mehrheitsrechner_ab_11_2014!B21="x"),1,0) -> 1 | J21: =IF(AND(Mehrheitsrechner_ab_11_2014!C21="N",Mehrheitsrechner_ab_11_2014!B21="x"),1,0) -> 0 | K21: =IF(AND(Mehrheitsrechner_ab_11_2014!C21="e",Mehrheitsrechner_ab_11_2014!B21="x"),1,0) -> 0 | L21: =IF(Mehrheitsrechner_ab_11_2014!B33<28, IF(AND(SUM(L22:L32)<1,'Technische Tabelle'!I21<1),Mehrheitsrechner_ab_11_2014!F21,0),0) -> 0 | M21: =IF(AND(Mehrheitsrechner_ab_11_2014!C21="n",Mehrheitsrechner_ab_11_2014!B21="x"),1*Mehrheitsrechner_ab_11_2014!D21,0) -> 0 | N21: =IF(AND(Mehrheitsrechner_Art_3_II_Prot!B21="x",Mehrheitsrechner_Art_3_II_Prot!C21="J"),1,0) -> 1 | O21: =IF(AND(Mehrheitsrechner_Art_3_II_Prot!B21="x",Mehrheitsrechner_Art_3_II_Prot!C21="N"),1,0) -> 0 | P21: =IF(AND(Mehrheitsrechner_ab_11_2014!H21="e",Mehrheitsrechner_ab_11_2014!G21="x"),1,0) -> 0 | Q21: =IF(Mehrheitsrechner_ab_11_2014!G33<28, IF(AND(SUM(Q22:Q32)<1,'Technische Tabelle'!N21<1),Mehrheitsrechner_ab_11_2014!K21,0),0) -> 0 | R21: =IF(AND(Mehrheitsrechner_Art_3_II_Prot!C21="n",Mehrheitsrechner_Art_3_II_Prot!B21="x"),1*Mehrheitsrechner_Art_3_II_Prot!F21,0) -> 0 | S21: =IF(AND(Mehrheitsrechner_Art_238_II!B25="x",Mehrheitsrechner_Art_238_II!C25="J"),1,0) -> 1 | T21: =IF(AND(Mehrheitsrechner_Art_238_II!B25="x",Mehrheitsrechner_Art_238_II!C25="N"),1,0) -> 0 | U21: =IF(AND(Mehrheitsrechner_Art_238_II!C25="e",Mehrheitsrechner_Art_238_II!B25="x"),1,0) -> 0 | V21: =IF(Mehrheitsrechner_ab_11_2014!L33<28, IF(AND(SUM(V22:V32)<1,'Technische Tabelle'!S21<1),Mehrheitsrechner_ab_11_2014!P21,0),0) -> 0 | W21: =IF(AND(Mehrheitsrechner_Art_238_II!C25="n",Mehrheitsrechner_Art_238_II!B25="x"),1*Mehrheitsrechner_Art_238_II!D25,0) -> 0
A22: Dänemark | B22: =IF(Mehrheitsrechner_ab_11_2014!C22="n",1,0) -> 0 | C22: =IF(Mehrheitsrechner_ab_11_2014!C22="n",1*Mehrheitsrechner_ab_11_2014!D22,0) -> 0 | D22: =IF(Mehrheitsrechner_Art_238_II!B26="n",1,0) -> 0 | E22: =IF(Mehrheitsrechner_Art_238_II!B26="n",1*Mehrheitsrechner_Art_238_II!C26,0) -> 0 | F22: =IF(Mehrheitsrechner_Art_3_II_Prot!C22="n",1,0) -> 0 | G22: =IF(Mehrheitsrechner_Art_3_II_Prot!C22="n",1*Mehrheitsrechner_Art_3_II_Prot!F22,0) -> 0 | I22: =IF(AND(Mehrheitsrechner_ab_11_2014!C22="J",Mehrheitsrechner_ab_11_2014!B22="x"),1,0) -> 1 | J22: =IF(AND(Mehrheitsrechner_ab_11_2014!C22="N",Mehrheitsrechner_ab_11_2014!B22="x"),1,0) -> 0 | K22: =IF(AND(Mehrheitsrechner_ab_11_2014!C22="e",Mehrheitsrechner_ab_11_2014!B22="x"),1,0) -> 0 | L22: =IF(Mehrheitsrechner_ab_11_2014!B33<28, IF(AND(SUM(L23:L32)<1,'Technische Tabelle'!I22<1),Mehrheitsrechner_ab_11_2014!F22,0),0) -> 0 | M22: =IF(AND(Mehrheitsrechner_ab_11_2014!C22="n",Mehrheitsrechner_ab_11_2014!B22="x"),1*Mehrheitsrechner_ab_11_2014!D22,0) -> 0 | N22: =IF(AND(Mehrheitsrechner_Art_3_II_Prot!B22="x",Mehrheitsrechner_Art_3_II_Prot!C22="J"),1,0) -> 1 | O22: =IF(AND(Mehrheitsrechner_Art_3_II_Prot!B22="x",Mehrheitsrechner_Art_3_II_Prot!C22="N"),1,0) -> 0 | P22: =IF(AND(Mehrheitsrechner_ab_11_2014!H22="e",Mehrheitsrechner_ab_11_2014!G22="x"),1,0) -> 0 | Q22: =IF(Mehrheitsrechner_ab_11_2014!G33<28, IF(AND(SUM(Q23:Q32)<1,'Technische Tabelle'!N22<1),Mehrheitsrechner_ab_11_2014!K22,0),0) -> 0 | R22: =IF(AND(Mehrheitsrechner_Art_3_II_Prot!C22="n",Mehrheitsrechner_Art_3_II_Prot!B22="x"),1*Mehrheitsrechner_Art_3_II_Prot!F22,0) -> 0 | S22: =IF(AND(Mehrheitsrechner_Art_238_II!B26="x",Mehrheitsrechner_Art_238_II!C26="J"),1,0) -> 1 | T22: =IF(AND(Mehrheitsrechner_Art_238_II!B26="x",Mehrheitsrechner_Art_238_II!C26="N"),1,0) -> 0 | U22: =IF(AND(Mehrheitsrechner_Art_238_II!C26="e",Mehrheitsrechner_Art_238_II!B26="x"),1,0) -> 0 | V22: =IF(Mehrheitsrechner_ab_11_2014!L33<28, IF(AND(SUM(V23:V32)<1,'Technische Tabelle'!S22<1),Mehrheitsrechner_ab_11_2014!P22,0),0) -> 0 | W22: =IF(AND(Mehrheitsrechner_Art_238_II!C26="n",Mehrheitsrechner_Art_238_II!B26="x"),1*Mehrheitsrechner_Art_238_II!D26,0) -> 0
A23: Slowakei | B23: =IF(Mehrheitsrechner_ab_11_2014!C23="n",1,0) -> 0 | C23: =IF(Mehrheitsrechner_ab_11_2014!C23="n",1*Mehrheitsrechner_ab_11_2014!D23,0) -> 0 | D23: =IF(Mehrheitsrechner_Art_238_II!B27="n",1,0) -> 0 | E23: =IF(Mehrheitsrechner_Art_238_II!B27="n",1*Mehrheitsrechner_Art_238_II!C27,0) -> 0 | F23: =IF(Mehrheitsrechner_Art_3_II_Prot!C23="n",1,0) -> 0 | G23: =IF(Mehrheitsrechner_Art_3_II_Prot!C23="n",1*Mehrheitsrechner_Art_3_II_Prot!F23,0) -> 0 | I23: =IF(AND(Mehrheitsrechner_ab_11_2014!C23="J",Mehrheitsrechner_ab_11_2014!B23="x"),1,0) -> 1 | J23: =IF(AND(Mehrheitsrechner_ab_11_2014!C23="N",Mehrheitsrechner_ab_11_2014!B23="x"),1,0) -> 0 | K23: =IF(AND(Mehrheitsrechner_ab_11_2014!C23="e",Mehrheitsrechner_ab_11_2014!B23="x"),1,0) -> 0 | L23: =IF(Mehrheitsrechner_ab_11_2014!B33<28, IF(AND(SUM(L24:L32)<1,'Technische Tabelle'!I23<1),Mehrheitsrechner_ab_11_2014!F23,0),0) -> 0 | M23: =IF(AND(Mehrheitsrechner_ab_11_2014!C23="n",Mehrheitsrechner_ab_11_2014!B23="x"),1*Mehrheitsrechner_ab_11_2014!D23,0) -> 0 | N23: =IF(AND(Mehrheitsrechner_Art_3_II_Prot!B23="x",Mehrheitsrechner_Art_3_II_Prot!C23="J"),1,0) -> 1 | O23: =IF(AND(Mehrheitsrechner_Art_3_II_Prot!B23="x",Mehrheitsrechner_Art_3_II_Prot!C23="N"),1,0) -> 0 | P23: =IF(AND(Mehrheitsrechner_ab_11_2014!H23="e",Mehrheitsrechner_ab_11_2014!G23="x"),1,0) -> 0 | Q23: =IF(Mehrheitsrechner_ab_11_2014!G33<28, IF(AND(SUM(Q24:Q32)<1,'Technische Tabelle'!N23<1),Mehrheitsrechner_ab_11_2014!K23,0),0) -> 0 | R23: =IF(AND(Mehrheitsrechner_Art_3_II_Prot!C23="n",Mehrheitsrechner_Art_3_II_Prot!B23="x"),1*Mehrheitsrechner_Art_3_II_Prot!F23,0) -> 0 | S23: =IF(AND(Mehrheitsrechner_Art_238_II!B27="x",Mehrheitsrechner_Art_238_II!C27="J"),1,0) -> 1 | T23: =IF(AND(Mehrheitsrechner_Art_238_II!B27="x",Mehrheitsrechner_Art_238_II!C27="N"),1,0) -> 0 | U23: =IF(AND(Mehrheitsrechner_Art_238_II!C27="e",Mehrheitsrechner_Art_238_II!B27="x"),1,0) -> 0 | V23: =IF(Mehrheitsrechner_ab_11_2014!L33<28, IF(AND(SUM(V24:V32)<1,'Technische Tabelle'!S23<1),Mehrheitsrechner_ab_11_2014!P23,0),0) -> 0 | W23: =IF(AND(Mehrheitsrechner_Art_238_II!C27="n",Mehrheitsrechner_Art_238_II!B27="x"),1*Mehrheitsrechner_Art_238_II!D27,0) -> 0
A24: Finnland | B24: =IF(Mehrheitsrechner_ab_11_2014!C24="n",1,0) -> 0 | C24: =IF(Mehrheitsrechner_ab_11_2014!C24="n",1*Mehrheitsrechner_ab_11_2014!D24,0) -> 0 | D24: =IF(Mehrheitsrechner_Art_238_II!B28="n",1,0) -> 0 | E24: =IF(Mehrheitsrechner_Art_238_II!B28="n",1*Mehrheitsrechner_Art_238_II!C28,0) -> 0 | F24: =IF(Mehrheitsrechner_Art_3_II_Prot!C24="n",1,0) -> 0 | G24: =IF(Mehrheitsrechner_Art_3_II_Prot!C24="n",1*Mehrheitsrechner_Art_3_II_Prot!F24,0) -> 0 | I24: =IF(AND(Mehrheitsrechner_ab_11_2014!C24="J",Mehrheitsrechner_ab_11_2014!B24="x"),1,0) -> 1 | J24: =IF(AND(Mehrheitsrechner_ab_11_2014!C24="N",Mehrheitsrechner_ab_11_2014!B24="x"),1,0) -> 0 | K24: =IF(AND(Mehrheitsrechner_ab_11_2014!C24="e",Mehrheitsrechner_ab_11_2014!B24="x"),1,0) -> 0 | L24: =IF(Mehrheitsrechner_ab_11_2014!B33<28, IF(AND(SUM(L25:L32)<1,'Technische Tabelle'!I24<1),Mehrheitsrechner_ab_11_2014!F24,0),0) -> 0 | M24: =IF(AND(Mehrheitsrechner_ab_11_2014!C24="n",Mehrheitsrechner_ab_11_2014!B24="x"),1*Mehrheitsrechner_ab_11_2014!D24,0) -> 0 | N24: =IF(AND(Mehrheitsrechner_Art_3_II_Prot!B24="x",Mehrheitsrechner_Art_3_II_Prot!C24="J"),1,0) -> 1 | O24: =IF(AND(Mehrheitsrechner_Art_3_II_Prot!B24="x",Mehrheitsrechner_Art_3_II_Prot!C24="N"),1,0) -> 0 | P24: =IF(AND(Mehrheitsrechner_ab_11_2014!H24="e",Mehrheitsrechner_ab_11_2014!G24="x"),1,0) -> 0 | Q24: =IF(Mehrheitsrechner_ab_11_2014!G33<28, IF(AND(SUM(Q25:Q32)<1,'Technische Tabelle'!N24<1),Mehrheitsrechner_ab_11_2014!K24,0),0) -> 0 | R24: =IF(AND(Mehrheitsrechner_Art_3_II_Prot!C24="n",Mehrheitsrechner_Art_3_II_Prot!B24="x"),1*Mehrheitsrechner_Art_3_II_Prot!F24,0) -> 0 | S24: =IF(AND(Mehrheitsrechner_Art_238_II!B28="x",Mehrheitsrechner_Art_238_II!C28="J"),1,0) -> 1 | T24: =IF(AND(Mehrheitsrechner_Art_238_II!B28="x",Mehrheitsrechner_Art_238_II!C28="N"),1,0) -> 0 | U24: =IF(AND(Mehrheitsrechner_Art_238_II!C28="e",Mehrheitsrechner_Art_238_II!B28="x"),1,0) -> 0 | V24: =IF(Mehrheitsrechner_ab_11_2014!L33<28, IF(AND(SUM(V25:V32)<1,'Technische Tabelle'!S24<1),Mehrheitsrechner_ab_11_2014!P24,0),0) -> 0 | W24: =IF(AND(Mehrheitsrechner_Art_238_II!C28="n",Mehrheitsrechner_Art_238_II!B28="x"),1*Mehrheitsrechner_Art_238_II!D28,0) -> 0
A25: Irland | B25: =IF(Mehrheitsrechner_ab_11_2014!C25="n",1,0) -> 0 | C25: =IF(Mehrheitsrechner_ab_11_2014!C25="n",1*Mehrheitsrechner_ab_11_2014!D25,0) -> 0 | D25: =IF(Mehrheitsrechner_Art_238_II!B29="n",1,0) -> 0 | E25: =IF(Mehrheitsrechner_Art_238_II!B29="n",1*Mehrheitsrechner_Art_238_II!C29,0) -> 0 | F25: =IF(Mehrheitsrechner_Art_3_II_Prot!C25="n",1,0) -> 0 | G25: =IF(Mehrheitsrechner_Art_3_II_Prot!C25="n",1*Mehrheitsrechner_Art_3_II_Prot!F25,0) -> 0 | I25: =IF(AND(Mehrheitsrechner_ab_11_2014!C25="J",Mehrheitsrechner_ab_11_2014!B25="x"),1,0) -> 1 | J25: =IF(AND(Mehrheitsrechner_ab_11_2014!C25="N",Mehrheitsrechner_ab_11_2014!B25="x"),1,0) -> 0 | K25: =IF(AND(Mehrheitsrechner_ab_11_2014!C25="e",Mehrheitsrechner_ab_11_2014!B25="x"),1,0) -> 0 | L25: =IF(Mehrheitsrechner_ab_11_2014!B33<28, IF(AND(SUM(L26:L32)<1,'Technische Tabelle'!I25<1),Mehrheitsrechner_ab_11_2014!F25,0),0) -> 0 | M25: =IF(AND(Mehrheitsrechner_ab_11_2014!C25="n",Mehrheitsrechner_ab_11_2014!B25="x"),1*Mehrheitsrechner_ab_11_2014!D25,0) -> 0 | N25: =IF(AND(Mehrheitsrechner_Art_3_II_Prot!B25="x",Mehrheitsrechner_Art_3_II_Prot!C25="J"),1,0) -> 1 | O25: =IF(AND(Mehrheitsrechner_Art_3_II_Prot!B25="x",Mehrheitsrechner_Art_3_II_Prot!C25="N"),1,0) -> 0 | P25: =IF(AND(Mehrheitsrechner_ab_11_2014!H25="e",Mehrheitsrechner_ab_11_2014!G25="x"),1,0) -> 0 | Q25: =IF(Mehrheitsrechner_ab_11_2014!G33<28, IF(AND(SUM(Q26:Q32)<1,'Technische Tabelle'!N25<1),Mehrheitsrechner_ab_11_2014!K25,0),0) -> 0 | R25: =IF(AND(Mehrheitsrechner_Art_3_II_Prot!C25="n",Mehrheitsrechner_Art_3_II_Prot!B25="x"),1*Mehrheitsrechner_Art_3_II_Prot!F25,0) -> 0 | S25: =IF(AND(Mehrheitsrechner_Art_238_II!B29="x",Mehrheitsrechner_Art_238_II!C29="J"),1,0) -> 1 | T25: =IF(AND(Mehrheitsrechner_Art_238_II!B29="x",Mehrheitsrechner_Art_238_II!C29="N"),1,0) -> 0 | U25: =IF(AND(Mehrheitsrechner_Art_238_II!C29="e",Mehrheitsrechner_Art_238_II!B29="x"),1,0) -> 0 | V25: =IF(Mehrheitsrechner_ab_11_2014!L33<28, IF(AND(SUM(V26:V32)<1,'Technische Tabelle'!S25<1),Mehrheitsrechner_ab_11_2014!P25,0),0) -> 0 | W25: =IF(AND(Mehrheitsrechner_Art_238_II!C29="n",Mehrheitsrechner_Art_238_II!B29="x"),1*Mehrheitsrechner_Art_238_II!D29,0) -> 0
A26: Litauen | B26: =IF(Mehrheitsrechner_ab_11_2014!C26="n",1,0) -> 0 | C26: =IF(Mehrheitsrechner_ab_11_2014!C26="n",1*Mehrheitsrechner_ab_11_2014!D26,0) -> 0 | D26: =IF(Mehrheitsrechner_Art_238_II!B30="n",1,0) -> 0 | E26: =IF(Mehrheitsrechner_Art_238_II!B30="n",1*Mehrheitsrechner_Art_238_II!C30,0) -> 0 | F26: =IF(Mehrheitsrechner_Art_3_II_Prot!C26="n",1,0) -> 0 | G26: =IF(Mehrheitsrechner_Art_3_II_Prot!C26="n",1*Mehrheitsrechner_Art_3_II_Prot!F26,0) -> 0 | I26: =IF(AND(Mehrheitsrechner_ab_11_2014!C26="J",Mehrheitsrechner_ab_11_2014!B26="x"),1,0) -> 1 | J26: =IF(AND(Mehrheitsrechner_ab_11_2014!C26="N",Mehrheitsrechner_ab_11_2014!B26="x"),1,0) -> 0 | K26: =IF(AND(Mehrheitsrechner_ab_11_2014!C26="e",Mehrheitsrechner_ab_11_2014!B26="x"),1,0) -> 0 | L26: =IF(Mehrheitsrechner_ab_11_2014!B33<28, IF(AND(SUM(L27:L32)<1,'Technische Tabelle'!I26<1),Mehrheitsrechner_ab_11_2014!F26,0),0) -> 0 | M26: =IF(AND(Mehrheitsrechner_ab_11_2014!C26="n",Mehrheitsrechner_ab_11_2014!B26="x"),1*Mehrheitsrechner_ab_11_2014!D26,0) -> 0 | N26: =IF(AND(Mehrheitsrechner_Art_3_II_Prot!B26="x",Mehrheitsrechner_Art_3_II_Prot!C26="J"),1,0) -> 1 | O26: =IF(AND(Mehrheitsrechner_Art_3_II_Prot!B26="x",Mehrheitsrechner_Art_3_II_Prot!C26="N"),1,0) -> 0 | P26: =IF(AND(Mehrheitsrechner_ab_11_2014!H26="e",Mehrheitsrechner_ab_11_2014!G26="x"),1,0) -> 0 | Q26: =IF(Mehrheitsrechner_ab_11_2014!G33<28, IF(AND(SUM(Q27:Q32)<1,'Technische Tabelle'!N26<1),Mehrheitsrechner_ab_11_2014!K26,0),0) -> 0 | R26: =IF(AND(Mehrheitsrechner_Art_3_II_Prot!C26="n",Mehrheitsrechner_Art_3_II_Prot!B26="x"),1*Mehrheitsrechner_Art_3_II_Prot!F26,0) -> 0 | S26: =IF(AND(Mehrheitsrechner_Art_238_II!B30="x",Mehrheitsrechner_Art_238_II!C30="J"),1,0) -> 1 | T26: =IF(AND(Mehrheitsrechner_Art_238_II!B30="x",Mehrheitsrechner_Art_238_II!C30="N"),1,0) -> 0 | U26: =IF(AND(Mehrheitsrechner_Art_238_II!C30="e",Mehrheitsrechner_Art_238_II!B30="x"),1,0) -> 0 | V26: =IF(Mehrheitsrechner_ab_11_2014!L33<28, IF(AND(SUM(V27:V32)<1,'Technische Tabelle'!S26<1),Mehrheitsrechner_ab_11_2014!P26,0),0) -> 0 | W26: =IF(AND(Mehrheitsrechner_Art_238_II!C30="n",Mehrheitsrechner_Art_238_II!B30="x"),1*Mehrheitsrechner_Art_238_II!D30,0) -> 0
A27: Slowenien | B27: =IF(Mehrheitsrechner_ab_11_2014!C27="n",1,0) -> 0 | C27: =IF(Mehrheitsrechner_ab_11_2014!C27="n",1*Mehrheitsrechner_ab_11_2014!D27,0) -> 0 | D27: =IF(Mehrheitsrechner_Art_238_II!B31="n",1,0) -> 0 | E27: =IF(Mehrheitsrechner_Art_238_II!B31="n",1*Mehrheitsrechner_Art_238_II!C31,0) -> 0 | F27: =IF(Mehrheitsrechner_Art_3_II_Prot!C27="n",1,0) -> 0 | G27: =IF(Mehrheitsrechner_Art_3_II_Prot!C27="n",1*Mehrheitsrechner_Art_3_II_Prot!F27,0) -> 0 | I27: =IF(AND(Mehrheitsrechner_ab_11_2014!C27="J",Mehrheitsrechner_ab_11_2014!B27="x"),1,0) -> 1 | J27: =IF(AND(Mehrheitsrechner_ab_11_2014!C27="N",Mehrheitsrechner_ab_11_2014!B27="x"),1,0) -> 0 | K27: =IF(AND(Mehrheitsrechner_ab_11_2014!C27="e",Mehrheitsrechner_ab_11_2014!B27="x"),1,0) -> 0 | L27: =IF(Mehrheitsrechner_ab_11_2014!B33<28, IF(AND(SUM(L28:L32)<1,'Technische Tabelle'!I27<1),Mehrheitsrechner_ab_11_2014!F27,0),0) -> 0 | M27: =IF(AND(Mehrheitsrechner_ab_11_2014!C27="n",Mehrheitsrechner_ab_11_2014!B27="x"),1*Mehrheitsrechner_ab_11_2014!D27,0) -> 0 | N27: =IF(AND(Mehrheitsrechner_Art_3_II_Prot!B27="x",Mehrheitsrechner_Art_3_II_Prot!C27="J"),1,0) -> 1 | O27: =IF(AND(Mehrheitsrechner_Art_3_II_Prot!B27="x",Mehrheitsrechner_Art_3_II_Prot!C27="N"),1,0) -> 0 | P27: =IF(AND(Mehrheitsrechner_ab_11_2014!H27="e",Mehrheitsrechner_ab_11_2014!G27="x"),1,0) -> 0 | Q27: =IF(Mehrheitsrechner_ab_11_2014!G33<28, IF(AND(SUM(Q28:Q32)<1,'Technische Tabelle'!N27<1),Mehrheitsrechner_ab_11_2014!K27,0),0) -> 0 | R27: =IF(AND(Mehrheitsrechner_Art_3_II_Prot!C27="n",Mehrheitsrechner_Art_3_II_Prot!B27="x"),1*Mehrheitsrechner_Art_3_II_Prot!F27,0) -> 0 | S27: =IF(AND(Mehrheitsrechner_Art_238_II!B31="x",Mehrheitsrechner_Art_238_II!C31="J"),1,0) -> 1 | T27: =IF(AND(Mehrheitsrechner_Art_238_II!B31="x",Mehrheitsrechner_Art_238_II!C31="N"),1,0) -> 0 | U27: =IF(AND(Mehrheitsrechner_Art_238_II!C31="e",Mehrheitsrechner_Art_238_II!B31="x"),1,0) -> 0 | V27: =IF(Mehrheitsrechner_ab_11_2014!L33<28, IF(AND(SUM(V28:V32)<1,'Technische Tabelle'!S27<1),Mehrheitsrechner_ab_11_2014!P27,0),0) -> 0 | W27: =IF(AND(Mehrheitsrechner_Art_238_II!C31="n",Mehrheitsrechner_Art_238_II!B31="x"),1*Mehrheitsrechner_Art_238_II!D31,0) -> 0
A28: Lettland | B28: =IF(Mehrheitsrechner_ab_11_2014!C28="n",1,0) -> 0 | C28: =IF(Mehrheitsrechner_ab_11_2014!C28="n",1*Mehrheitsrechner_ab_11_2014!D28,0) -> 0 | D28: =IF(Mehrheitsrechner_Art_238_II!B32="n",1,0) -> 0 | E28: =IF(Mehrheitsrechner_Art_238_II!B32="n",1*Mehrheitsrechner_Art_238_II!C32,0) -> 0 | F28: =IF(Mehrheitsrechner_Art_3_II_Prot!C28="n",1,0) -> 0 | G28: =IF(Mehrheitsrechner_Art_3_II_Prot!C28="n",1*Mehrheitsrechner_Art_3_II_Prot!F28,0) -> 0 | I28: =IF(AND(Mehrheitsrechner_ab_11_2014!C28="J",Mehrheitsrechner_ab_11_2014!B28="x"),1,0) -> 1 | J28: =IF(AND(Mehrheitsrechner_ab_11_2014!C28="N",Mehrheitsrechner_ab_11_2014!B28="x"),1,0) -> 0 | K28: =IF(AND(Mehrheitsrechner_ab_11_2014!C28="e",Mehrheitsrechner_ab_11_2014!B28="x"),1,0) -> 0 | L28: =IF(Mehrheitsrechner_ab_11_2014!B33<28, IF(AND(SUM(L29:L32)<1,'Technische Tabelle'!I28<1),Mehrheitsrechner_ab_11_2014!F28,0),0) -> 0 | M28: =IF(AND(Mehrheitsrechner_ab_11_2014!C28="n",Mehrheitsrechner_ab_11_2014!B28="x"),1*Mehrheitsrechner_ab_11_2014!D28,0) -> 0 | N28: =IF(AND(Mehrheitsrechner_Art_3_II_Prot!B28="x",Mehrheitsrechner_Art_3_II_Prot!C28="J"),1,0) -> 1 | O28: =IF(AND(Mehrheitsrechner_Art_3_II_Prot!B28="x",Mehrheitsrechner_Art_3_II_Prot!C28="N"),1,0) -> 0 | P28: =IF(AND(Mehrheitsrechner_ab_11_2014!H28="e",Mehrheitsrechner_ab_11_2014!G28="x"),1,0) -> 0 | Q28: =IF(Mehrheitsrechner_ab_11_2014!G33<28, IF(AND(SUM(Q29:Q32)<1,'Technische Tabelle'!N28<1),Mehrheitsrechner_ab_11_2014!K28,0),0) -> 0 | R28: =IF(AND(Mehrheitsrechner_Art_3_II_Prot!C28="n",Mehrheitsrechner_Art_3_II_Prot!B28="x"),1*Mehrheitsrechner_Art_3_II_Prot!F28,0) -> 0 | S28: =IF(AND(Mehrheitsrechner_Art_238_II!B32="x",Mehrheitsrechner_Art_238_II!C32="J"),1,0) -> 1 | T28: =IF(AND(Mehrheitsrechner_Art_238_II!B32="x",Mehrheitsrechner_Art_238_II!C32="N"),1,0) -> 0 | U28: =IF(AND(Mehrheitsrechner_Art_238_II!C32="e",Mehrheitsrechner_Art_238_II!B32="x"),1,0) -> 0 | V28: =IF(Mehrheitsrechner_ab_11_2014!L33<28, IF(AND(SUM(V29:V32)<1,'Technische Tabelle'!S28<1),Mehrheitsrechner_ab_11_2014!P28,0),0) -> 0 | W28: =IF(AND(Mehrheitsrechner_Art_238_II!C32="n",Mehrheitsrechner_Art_238_II!B32="x"),1*Mehrheitsrechner_Art_238_II!D32,0) -> 0
A29: Estland | B29: =IF(Mehrheitsrechner_ab_11_2014!C29="n",1,0) -> 0 | C29: =IF(Mehrheitsrechner_ab_11_2014!C29="n",1*Mehrheitsrechner_ab_11_2014!D29,0) -> 0 | D29: =IF(Mehrheitsrechner_Art_238_II!B33="n",1,0) -> 0 | E29: =IF(Mehrheitsrechner_Art_238_II!B33="n",1*Mehrheitsrechner_Art_238_II!C33,0) -> 0 | F29: =IF(Mehrheitsrechner_Art_3_II_Prot!C29="n",1,0) -> 0 | G29: =IF(Mehrheitsrechner_Art_3_II_Prot!C29="n",1*Mehrheitsrechner_Art_3_II_Prot!F29,0) -> 0 | I29: =IF(AND(Mehrheitsrechner_ab_11_2014!C29="J",Mehrheitsrechner_ab_11_2014!B29="x"),1,0) -> 1 | J29: =IF(AND(Mehrheitsrechner_ab_11_2014!C29="N",Mehrheitsrechner_ab_11_2014!B29="x"),1,0) -> 0 | K29: =IF(AND(Mehrheitsrechner_ab_11_2014!C29="e",Mehrheitsrechner_ab_11_2014!B29="x"),1,0) -> 0 | L29: =IF(Mehrheitsrechner_ab_11_2014!B33<28, IF(AND(SUM(L30:L32)<1,'Technische Tabelle'!I29<1),Mehrheitsrechner_ab_11_2014!F29,0),0) -> 0 | M29: =IF(AND(Mehrheitsrechner_ab_11_2014!C29="n",Mehrheitsrechner_ab_11_2014!B29="x"),1*Mehrheitsrechner_ab_11_2014!D29,0) -> 0 | N29: =IF(AND(Mehrheitsrechner_Art_3_II_Prot!B29="x",Mehrheitsrechner_Art_3_II_Prot!C29="J"),1,0) -> 1 | O29: =IF(AND(Mehrheitsrechner_Art_3_II_Prot!B29="x",Mehrheitsrechner_Art_3_II_Prot!C29="N"),1,0) -> 0 | P29: =IF(AND(Mehrheitsrechner_ab_11_2014!H29="e",Mehrheitsrechner_ab_11_2014!G29="x"),1,0) -> 0 | Q29: =IF(Mehrheitsrechner_ab_11_2014!G33<28, IF(AND(SUM(Q30:Q32)<1,'Technische Tabelle'!N29<1),Mehrheitsrechner_ab_11_2014!K29,0),0) -> 0 | R29: =IF(AND(Mehrheitsrechner_Art_3_II_Prot!C29="n",Mehrheitsrechner_Art_3_II_Prot!B29="x"),1*Mehrheitsrechner_Art_3_II_Prot!F29,0) -> 0 | S29: =IF(AND(Mehrheitsrechner_Art_238_II!B33="x",Mehrheitsrechner_Art_238_II!C33="J"),1,0) -> 1 | T29: =IF(AND(Mehrheitsrechner_Art_238_II!B33="x",Mehrheitsrechner_Art_238_II!C33="N"),1,0) -> 0 | U29: =IF(AND(Mehrheitsrechner_Art_238_II!C33="e",Mehrheitsrechner_Art_238_II!B33="x"),1,0) -> 0 | V29: =IF(Mehrheitsrechner_ab_11_2014!L33<28, IF(AND(SUM(V30:V32)<1,'Technische Tabelle'!S29<1),Mehrheitsrechner_ab_11_2014!P29,0),0) -> 0 | W29: =IF(AND(Mehrheitsrechner_Art_238_II!C33="n",Mehrheitsrechner_Art_238_II!B33="x"),1*Mehrheitsrechner_Art_238_II!D33,0) -> 0
A30: Zypern | B30: =IF(Mehrheitsrechner_ab_11_2014!C30="n",1,0) -> 0 | C30: =IF(Mehrheitsrechner_ab_11_2014!C30="n",1*Mehrheitsrechner_ab_11_2014!D30,0) -> 0 | D30: =IF(Mehrheitsrechner_Art_238_II!B34="n",1,0) -> 0 | E30: =IF(Mehrheitsrechner_Art_238_II!B34="n",1*Mehrheitsrechner_Art_238_II!C34,0) -> 0 | F30: =IF(Mehrheitsrechner_Art_3_II_Prot!C30="n",1,0) -> 0 | G30: =IF(Mehrheitsrechner_Art_3_II_Prot!C30="n",1*Mehrheitsrechner_Art_3_II_Prot!F30,0) -> 0 | I30: =IF(AND(Mehrheitsrechner_ab_11_2014!C30="J",Mehrheitsrechner_ab_11_2014!B30="x"),1,0) -> 1 | J30: =IF(AND(Mehrheitsrechner_ab_11_2014!C30="N",Mehrheitsrechner_ab_11_2014!B30="x"),1,0) -> 0 | K30: =IF(AND(Mehrheitsrechner_ab_11_2014!C30="e",Mehrheitsrechner_ab_11_2014!B30="x"),1,0) -> 0 | L30: =IF(Mehrheitsrechner_ab_11_2014!B33<28, IF(AND(SUM(L31:L32)<1,'Technische Tabelle'!I30<1),Mehrheitsrechner_ab_11_2014!F30,0),0) -> 0 | M30: =IF(AND(Mehrheitsrechner_ab_11_2014!C30="n",Mehrheitsrechner_ab_11_2014!B30="x"),1*Mehrheitsrechner_ab_11_2014!D30,0) -> 0 | N30: =IF(AND(Mehrheitsrechner_Art_3_II_Prot!B30="x",Mehrheitsrechner_Art_3_II_Prot!C30="J"),1,0) -> 1 | O30: =IF(AND(Mehrheitsrechner_Art_3_II_Prot!B30="x",Mehrheitsrechner_Art_3_II_Prot!C30="N"),1,0) -> 0 | P30: =IF(AND(Mehrheitsrechner_ab_11_2014!H30="e",Mehrheitsrechner_ab_11_2014!G30="x"),1,0) -> 0 | Q30: =IF(Mehrheitsrechner_ab_11_2014!G33<28, IF(AND(SUM(Q31:Q32)<1,'Technische Tabelle'!N30<1),Mehrheitsrechner_ab_11_2014!K30,0),0) -> 0 | R30: =IF(AND(Mehrheitsrechner_Art_3_II_Prot!C30="n",Mehrheitsrechner_Art_3_II_Prot!B30="x"),1*Mehrheitsrechner_Art_3_II_Prot!F30,0) -> 0 | S30: =IF(AND(Mehrheitsrechner_Art_238_II!B34="x",Mehrheitsrechner_Art_238_II!C34="J"),1,0) -> 1 | T30: =IF(AND(Mehrheitsrechner_Art_238_II!B34="x",Mehrheitsrechner_Art_238_II!C34="N"),1,0) -> 0 | U30: =IF(AND(Mehrheitsrechner_Art_238_II!C34="e",Mehrheitsrechner_Art_238_II!B34="x"),1,0) -> 0 | V30: =IF(Mehrheitsrechner_ab_11_2014!L33<28, IF(AND(SUM(V31:V32)<1,'Technische Tabelle'!S30<1),Mehrheitsrechner_ab_11_2014!P30,0),0) -> 0 | W30: =IF(AND(Mehrheitsrechner_Art_238_II!C34="n",Mehrheitsrechner_Art_238_II!B34="x"),1*Mehrheitsrechner_Art_238_II!D34,0) -> 0
A31: Luxemburg | B31: =IF(Mehrheitsrechner_ab_11_2014!C31="n",1,0) -> 0 | C31: =IF(Mehrheitsrechner_ab_11_2014!C31="n",1*Mehrheitsrechner_ab_11_2014!D31,0) -> 0 | D31: =IF(Mehrheitsrechner_Art_238_II!B35="n",1,0) -> 0 | E31: =IF(Mehrheitsrechner_Art_238_II!B35="n",1*Mehrheitsrechner_Art_238_II!C35,0) -> 0 | F31: =IF(Mehrheitsrechner_Art_3_II_Prot!C31="n",1,0) -> 0 | G31: =IF(Mehrheitsrechner_Art_3_II_Prot!C31="n",1*Mehrheitsrechner_Art_3_II_Prot!F31,0) -> 0 | I31: =IF(AND(Mehrheitsrechner_ab_11_2014!C31="J",Mehrheitsrechner_ab_11_2014!B31="x"),1,0) -> 1 | J31: =IF(AND(Mehrheitsrechner_ab_11_2014!C31="N",Mehrheitsrechner_ab_11_2014!B31="x"),1,0) -> 0 | K31: =IF(AND(Mehrheitsrechner_ab_11_2014!C31="e",Mehrheitsrechner_ab_11_2014!B31="x"),1,0) -> 0 | L31: =IF(Mehrheitsrechner_ab_11_2014!B33<28, IF(AND(SUM(L32<1),'Technische Tabelle'!I31<1),Mehrheitsrechner_ab_11_2014!F31,0),0) -> 0 | M31: =IF(AND(Mehrheitsrechner_ab_11_2014!C31="n",Mehrheitsrechner_ab_11_2014!B31="x"),1*Mehrheitsrechner_ab_11_2014!D31,0) -> 0 | N31: =IF(AND(Mehrheitsrechner_Art_3_II_Prot!B31="x",Mehrheitsrechner_Art_3_II_Prot!C31="J"),1,0) -> 1 | O31: =IF(AND(Mehrheitsrechner_Art_3_II_Prot!B31="x",Mehrheitsrechner_Art_3_II_Prot!C31="N"),1,0) -> 0 | P31: =IF(AND(Mehrheitsrechner_ab_11_2014!H31="e",Mehrheitsrechner_ab_11_2014!G31="x"),1,0) -> 0 | Q31: =IF(Mehrheitsrechner_ab_11_2014!G33<28, IF(AND(SUM(Q32<1),'Technische Tabelle'!N31<1),Mehrheitsrechner_ab_11_2014!K31,0),0) -> 0 | R31: =IF(AND(Mehrheitsrechner_Art_3_II_Prot!C31="n",Mehrheitsrechner_Art_3_II_Prot!B31="x"),1*Mehrheitsrechner_Art_3_II_Prot!F31,0) -> 0 | S31: =IF(AND(Mehrheitsrechner_Art_238_II!B35="x",Mehrheitsrechner_Art_238_II!C35="J"),1,0) -> 1 | T31: =IF(AND(Mehrheitsrechner_Art_238_II!B35="x",Mehrheitsrechner_Art_238_II!C35="N"),1,0) -> 0 | U31: =IF(AND(Mehrheitsrechner_Art_238_II!C35="e",Mehrheitsrechner_Art_238_II!B35="x"),1,0) -> 0 | V31: =IF(Mehrheitsrechner_ab_11_2014!L33<28, IF(AND(SUM(V32<1),'Technische Tabelle'!S31<1),Mehrheitsrechner_ab_11_2014!P31,0),0) -> 0 | W31: =IF(AND(Mehrheitsrechner_Art_238_II!C35="n",Mehrheitsrechner_Art_238_II!B35="x"),1*Mehrheitsrechner_Art_238_II!D35,0) -> 0
A32: Malta | B32: =IF(Mehrheitsrechner_ab_11_2014!C32="n",1,0) -> 0 | C32: =IF(Mehrheitsrechner_ab_11_2014!C32="n",1*Mehrheitsrechner_ab_11_2014!D32,0) -> 0 | D32: =IF(Mehrheitsrechner_Art_238_II!B36="n",1,0) -> 0 | E32: =IF(Mehrheitsrechner_Art_238_II!B36="n",1*Mehrheitsrechner_Art_238_II!C36,0) -> 0 | F32: =IF(Mehrheitsrechner_Art_3_II_Prot!C32="n",1,0) -> 0 | G32: =IF(Mehrheitsrechner_Art_3_II_Prot!C32="n",1*Mehrheitsrechner_Art_3_II_Prot!F32,0) -> 0 | I32: =IF(AND(Mehrheitsrechner_ab_11_2014!C32="J",Mehrheitsrechner_ab_11_2014!B32="x"),1,0) -> 1 | J32: =IF(AND(Mehrheitsrechner_ab_11_2014!C32="N",Mehrheitsrechner_ab_11_2014!B32="x"),1,0) -> 0 | K32: =IF(AND(Mehrheitsrechner_ab_11_2014!C32="e",Mehrheitsrechner_ab_11_2014!B32="x"),1,0) -> 0 | L32: =IF(Mehrheitsrechner_ab_11_2014!B33<28, IF('Technische Tabelle'!I32<1,Mehrheitsrechner_ab_11_2014!F32,0), 0) -> 0 | M32: =IF(AND(Mehrheitsrechner_ab_11_2014!C32="n",Mehrheitsrechner_ab_11_2014!B32="x"),1*Mehrheitsrechner_ab_11_2014!D32,0) -> 0 | N32: =IF(AND(Mehrheitsrechner_Art_3_II_Prot!B32="x",Mehrheitsrechner_Art_3_II_Prot!C32="J"),1,0) -> 1 | O32: =IF(AND(Mehrheitsrechner_Art_3_II_Prot!B32="x",Mehrheitsrechner_Art_3_II_Prot!C32="N"),1,0) -> 0 | P32: =IF(AND(Mehrheitsrechner_ab_11_2014!H32="e",Mehrheitsrechner_ab_11_2014!G32="x"),1,0) -> 0 | Q32: =IF(Mehrheitsrechner_ab_11_2014!G33<28, IF('Technische Tabelle'!N32<1,Mehrheitsrechner_ab_11_2014!K32,0), 0) -> 0 | R32: =IF(AND(Mehrheitsrechner_Art_3_II_Prot!C32="n",Mehrheitsrechner_Art_3_II_Prot!B32="x"),1*Mehrheitsrechner_Art_3_II_Prot!F32,0) -> 0 | S32: =IF(AND(Mehrheitsrechner_Art_238_II!B36="x",Mehrheitsrechner_Art_238_II!C36="J"),1,0) -> 1 | T32: =IF(AND(Mehrheitsrechner_Art_238_II!B36="x",Mehrheitsrechner_Art_238_II!C36="N"),1,0) -> 0 | U32: =IF(AND(Mehrheitsrechner_Art_238_II!C36="e",Mehrheitsrechner_Art_238_II!B36="x"),1,0) -> 0 | V32: =IF(Mehrheitsrechner_ab_11_2014!L33<28, IF('Technische Tabelle'!S32<1,Mehrheitsrechner_ab_11_2014!P32,0), 0) -> 0 | W32: =IF(AND(Mehrheitsrechner_Art_238_II!C36="n",Mehrheitsrechner_Art_238_II!B36="x"),1*Mehrheitsrechner_Art_238_II!D36,0) -> 0
B34: =SUM(B5:B32) -> 0 | C34: 0 | D34: 0 | E34: 0 | F34: 0 | G34: 0 | I34: 28 | J34: 0 | K34: 0 | M34: =SUM(M5:M32) -> 0 | N34: =SUM(N5:N32) -> 28 | O34: 0 | P34: 0 | R34: =SUM(R5:R32) -> 0 | S34: =SUM(S5:S32) -> 28 | T34: 0 | U34: 0 | W34: =SUM(W5:W32) -> 0
L35: Sperrminorität erfüllt?
L36: =IF(AND(Mehrheitsrechner_ab_11_2014!B33<28, Mehrheitsrechner_ab_11_2014!F33-SUM(L5:L32)>Mehrheitsrechner_ab_11_2014!D33*0.35), "Ja", "Nein") -> Nein
B38: Die Tabellen in Spalten B-G werden in der aktuellen Fassung des Mehrheitsrechners nicht mehr benötigt; bitte die Spalten nicht entfernen, ohne die Formeln anzupassen, weil anderenfalls die Bezüge verloren gehen. [Mit Bitte um Entschuldigung für die unsaubere Programmierung.] | L38: [Erläuterung: Diese Spalte berechnet dann, wenn weniger als 28 MS an der Abstimmung teilnehmen, ob die Sperrminorität erfüllt ist (Ms, die 35 % der abstimmenden Bevölkerung ausmachen, zzgl. 1 MS). Oben wird der kleinste MS eingetragen, der teilnimmt, aber nicht mit JA gestimmt hat; anschließend wird geprüft, ob die nicht-zustimmende Bevölkerung, abzüglich der Bevölkerung dieses kleinsten MS noch immer mehr als 35 % der insgesamt beteiligten Bevölkerung ausmacht; dann ist die Sperrminorität erfüllt, sonst nicht) | Q38: [Diese Spalte ist aktuell ohne Funktion] | V38: [Diese Spalte ist aktuell ohne Funktion]

Sheet Tabelle1 (hidden)

Sheet Tabelle2
